Workbook

Sheet Marker Feat Constants
B1: //:: Racial caster marker feats | F1: =CONCATENATE(A1, B1, C1, D1, E1) -> //:: Racial caster marker feats
A2: const int | B2: FEAT_FEY_SPELLCASTING_GLOURA | C2: = | D2: 18200 | E2: ; | F2: const int FEAT_FEY_SPELLCASTING_GLOURA = 18200; | H2: Bardic Spellcasting (Gloura)
A3: const int | B3: FEAT_ABERRATION_SPELLCASTING_DRIDER | C3: = | D3: =SUM(D2+1) -> 18201 | E3: ; | F3: const int FEAT_ABERRATION_SPELLCASTING_DRIDER = 18201; | H3: Sorcerous Spellcasting (Drider)
A4: const int | B4: FEAT_MONSTROUS_SPELLCASTING_ARKAMOI | C4: = | D4: =SUM(D3+1) -> 18202 | E4: ; | F4: const int FEAT_MONSTROUS_SPELLCASTING_ARKAMOI = 18202; | H4: Sorcerous Spellcasting (Arkamoi)
A5: const int | B5: FEAT_MONSTROUS_SPELLCASTING_MARRUTACT | C5: = | D5: =SUM(D4+1) -> 18203 | E5: ; | F5: const int FEAT_MONSTROUS_SPELLCASTING_MARRUTACT = 18203; | H5: Sorcerous Spellcasting (Marrrutact)
A6: const int | B6: FEAT_MONSTROUS_SPELLCASTING_REDSPAWN_ARCANISS | C6: = | D6: 18204 | E6: ; | F6: const int FEAT_MONSTROUS_SPELLCASTING_REDSPAWN_ARCANISS = 18204; | H6: Sorcerous Spellcasting (Redspawn Arcaniss)
A7: const int | B7: FEAT_OUTSIDER_SPELLCASTING_RAKSHASA | C7: = | D7: 18205 | E7: ; | F7: const int FEAT_OUTSIDER_SPELLCASTING_RAKSHASA = 18205; | H7: Sorcerous Spellcasting (Rakshasa)
A8: const int | B8: FEAT_SHAPECHANGER_SPELLCASTING_ARANEA | C8: = | D8: 18206 | E8: ; | F8: const int FEAT_SHAPECHANGER_SPELLCASTING_ARANEA = 18206; | H8: Sorcerous Spellcasting (Aranea)
B10: //:: Fey RHD spellcasting marker feats | F10: =CONCATENATE(A10, B10, C10, D10, E10) -> //:: Fey RHD spellcasting marker feats
A11: const int | B11: FEAT_ABCHAMP_SPELLCASTING_FEY | C11: = | D11: =SUM(D8+1) -> 18207 | E11: ; | F11: const int FEAT_ABCHAMP_SPELLCASTING_FEY = 18207; | H11: Abjurant Champion Spellcasting (Fey)
A12: const int | B12: FEAT_ACOLYTE_SPELLCASTING_FEY | C12: = | D12: =SUM(D11+1) -> 18208 | E12: ; | F12: const int FEAT_ACOLYTE_SPELLCASTING_FEY = 18208; | H12: Acolyte of the Skin Spellcasting (Fey)
A13: const int | B13: FEAT_ALCHEM_SPELLCASTING_FEY | C13: = | D13: 18209 | E13: ; | F13: const int FEAT_ALCHEM_SPELLCASTING_FEY = 18209; | H13: Master Alchemist Spellcasting (Fey)
A14: const int | B14: FEAT_ALIENIST_SPELLCASTING_FEY | C14: = | D14: 18210 | E14: ; | F14: const int FEAT_ALIENIST_SPELLCASTING_FEY = 18210; | H14: Alienist Spellcasting (Fey)
A15: const int | B15: FEAT_ANIMA_SPELLCASTING_FEY | C15: = | D15: 18211 | E15: ; | F15: const int FEAT_ANIMA_SPELLCASTING_FEY = 18211; | H15: Anima Mage Spellcasting (Fey)
A16: const int | B16: FEAT_ARCHMAGE_SPELLCASTING_FEY | C16: = | D16: 18212 | E16: ; | F16: const int FEAT_ARCHMAGE_SPELLCASTING_FEY = 18212; | H16: Archmage Spellcasting (Fey)
A17: const int | B17: FEAT_ARCTRICK_SPELLCASTING_FEY | C17: = | D17: 18213 | E17: ; | F17: const int FEAT_ARCTRICK_SPELLCASTING_FEY = 18213; | H17: Arcane Trickster Spellcasting (Fey)
A18: const int | B18: FEAT_ASMODEUS_SPELLCASTING_FEY | C18: = | D18: 18214 | E18: ; | F18: const int FEAT_ASMODEUS_SPELLCASTING_FEY = 18214; | H18: Disciple of Asmodeus Spellcasting (Fey)
A19: const int | B19: FEAT_BSINGER_SPELLCASTING_FEY | C19: = | D19: 18215 | E19: ; | F19: =CONCATENATE(A19, B19, C19, D19, E19) -> const int FEAT_BSINGER_SPELLCASTING_FEY = 18215; | H19: Bladesinger Spellcasting (Fey)
A20: const int | B20: FEAT_BLDMAGUS_SPELLCASTING_FEY | C20: = | D20: 18216 | E20: ; | F20: const int FEAT_BLDMAGUS_SPELLCASTING_FEY = 18216; | H20: Blood Magus Spellcasting (Fey)
A21: const int | B21: FEAT_CMANCER_SPELLCASTING_FEY | C21: = | D21: 18217 | E21: ; | F21: =CONCATENATE(A21, B21, C21, D21, E21) -> const int FEAT_CMANCER_SPELLCASTING_FEY = 18217; | H21: Cerebremancer Spellcasting (Fey)
A22: const int | B22: FEAT_DIABOLIST_SPELLCASTING_FEY | C22: = | D22: 18218 | E22: ; | F22: =CONCATENATE(A22, B22, C22, D22, E22) -> const int FEAT_DIABOLIST_SPELLCASTING_FEY = 18218; | H22: Diabolist Spellcasting (Fey)
A23: const int | B23: FEAT_DHEART_SPELLCASTING_FEY | C23: = | D23: 18219 | E23: ; | F23: const int FEAT_DHEART_SPELLCASTING_FEY = 18219; | H23: Dragonheart Mage Spellcasting (Fey)
A24: const int | B24: FEAT_DSONG_SPELLCASTING_FEY | C24: = | D24: 18220 | E24: ; | F24: const int FEAT_DSONG_SPELLCASTING_FEY = 18220; | H24: Dragonsong Lyrist Spellcasting (Fey)
A25: const int | B25: FEAT_EKNIGHT_SPELLCASTING_FEY | C25: = | D25: 18221 | E25: ; | F25: const int FEAT_EKNIGHT_SPELLCASTING_FEY = 18221; | H25: Eldritch Knight Spellcasting (Fey)
A26: const int | B26: FEAT_ENLIGHTENEDFIST_SPELLCASTING_FEY | C26: = | D26: 18222 | E26: ; | F26: const int FEAT_ENLIGHTENEDFIST_SPELLCASTING_FEY = 18222; | H26: Enlightened Fist Spellcasting (Fey)
A27: const int | B27: FEAT_ELESAVANT_SPELLCASTING_FEY | C27: = | D27: 18223 | E27: ; | F27: const int FEAT_ELESAVANT_SPELLCASTING_FEY = 18223; | H27: Elemental Savant Spellcasting (Fey)
A28: const int | B28: FEAT_ETHEURGE_SPELLCASTING_FEY | C28: = | D28: 18224 | E28: ; | F28: const int FEAT_ETHEURGE_SPELLCASTING_FEY = 18224; | H28: Eldritch Theurge Spellcasting (Fey)
A29: const int | B29: FEAT_FOCHULAN_LYRIST_SPELLCASTING_FEY | C29: = | D29: 18225 | E29: ; | F29: const int FEAT_FOCHULAN_LYRIST_SPELLCASTING_FEY = 18225; | H29: Fochlucan Lyrist Spellcasting (Fey)
A30: const int | B30: FEAT_FROSTMAGE_SPELLCASTING_FEY | C30: = | D30: 18226 | E30: ; | F30: const int FEAT_FROSTMAGE_SPELLCASTING_FEY = 18226; | H30: Frost Mage Spellcasting (Fey)
A31: const int | B31: FEAT_GRAZZT_SPELLCASTING_FEY | C31: = | D31: 18227 | E31: ; | F31: const int FEAT_GRAZZT_SPELLCASTING_FEY = 18227; | H31: Thrall of Graz'zt Spellcasting (Fey)
A32: const int | B32: FEAT_HARPERM_SPELLCASTING_FEY | C32: = | D32: 18228 | E32: ; | F32: const int FEAT_HARPERM_SPELLCASTING_FEY = 18228; | H32: Harper Mage Spellcasting (Fey)
A33: const int | B33: FEAT_HATHRAN_SPELLCASTING_FEY | C33: = | D33: 18229 | E33: ; | F33: const int FEAT_HATHRAN_SPELLCASTING_FEY = 18229; | H33: Hathran Spellcasting (Fey)
A34: const int | B34: FEAT_HAVOC_SPELLCASTING_FEY | C34: = | D34: 18230 | E34: ; | F34: const int FEAT_HAVOC_SPELLCASTING_FEY = 18230; | H34: Havoc Mage Spellcasting (Fey)
A35: const int | B35: FEAT_JPM_SPELLCASTING_FEY | C35: = | D35: 18231 | E35: ; | F35: const int FEAT_JPM_SPELLCASTING_FEY = 18231; | H35: Jade Phoenix Mage Spellcasting (Fey)
A36: const int | B36: FEAT_JUDICATOR_SPELLCASTING_FEY | C36: = | D36: 18232 | E36: ; | F36: const int FEAT_JUDICATOR_SPELLCASTING_FEY = 18232; | H36: Drow Judicator Spellcasting (Fey)
A37: const int | B37: FEAT_MAESTER_SPELLCASTING_FEY | C37: = | D37: 18233 | E37: ; | F37: const int FEAT_MAESTER_SPELLCASTING_FEY = 18233; | H37: Maester Spellcasting (Fey)
A38: const int | B38: FEAT_MAGEKILLER_SPELLCASTING_FEY | C38: = | D38: 18234 | E38: ; | F38: const int FEAT_MAGEKILLER_SPELLCASTING_FEY = 18234; | H38: Mage Killer Spellcasting (Fey)
A39: const int | B39: FEAT_MHARPER_SPELLCASTING_FEY | C39: = | D39: 18235 | E39: ; | F39: const int FEAT_MHARPER_SPELLCASTING_FEY = 18235; | H39: Master Harper Spellcasting (Fey)
A40: const int | B40: FEAT_MYSTIC_THEURGE_SPELLCASTING_FEY | C40: = | D40: 18236 | E40: ; | F40: const int FEAT_MYSTIC_THEURGE_SPELLCASTING_FEY = 18236; | H40: Mystic Theurge Spellcasting (Fey)
A41: const int | B41: FEAT_NOCTUMANCER_SPELLCASTING_FEY | C41: = | D41: 18237 | E41: ; | F41: const int FEAT_NOCTUMANCER_SPELLCASTING_FEY = 18237; | H41: Noctumancer Spellcasting (Fey)
A42: const int | B42: FEAT_OOZEMASTER_SPELLCASTING_FEY | C42: = | D42: 18238 | E42: ; | F42: const int FEAT_OOZEMASTER_SPELLCASTING_FEY = 18238; | H42: Oozemaster Spellcasting (Fey)
A43: const int | B43: FEAT_PALEMASTER_SPELLCASTING_FEY | C43: = | D43: 18239 | E43: ; | F43: const int FEAT_PALEMASTER_SPELLCASTING_FEY = 18239; | H43: Pale Master Spellcasting (Fey)
A44: const int | B44: FEAT_RAGEMAGE_SPELLCASTING_FEY | C44: = | D44: 18240 | E44: ; | F44: const int FEAT_RAGEMAGE_SPELLCASTING_FEY = 18240; | H44: Rage Mage Spellcasting (Fey)
A45: const int | B45: FEAT_SHADOWADEPT_SPELLCASTING_FEY | C45: = | D45: 18241 | E45: ; | F45: const int FEAT_SHADOWADEPT_SPELLCASTING_FEY = 18241; | H45: Shadow Adept Spellcasting (Fey)
A46: const int | B46: FEAT_SOULCASTER_SPELLCASTING_FEY | C46: = | D46: 18242 | E46: ; | F46: const int FEAT_SOULCASTER_SPELLCASTING_FEY = 18242; | H46: Soulcaster Spellcasting (Fey)
A47: const int | B47: FEAT_SPELLDANCER_SPELLCASTING_FEY | C47: = | D47: 18243 | E47: ; | F47: const int FEAT_SPELLDANCER_SPELLCASTING_FEY = 18243; | H47: Spelldancer Spellcasting (Fey)
A48: const int | B48: FEAT_SSWORD_SPELLCASTING_FEY | C48: = | D48: 18244 | E48: ; | F48: const int FEAT_SSWORD_SPELLCASTING_FEY = 18244; | H48: Spellsword Spellcasting (Fey)
A49: const int | B49: FEAT_TIAMAT_SPELLCASTING_FEY | C49: = | D49: 18245 | E49: ; | F49: const int FEAT_TIAMAT_SPELLCASTING_FEY = 18245; | H49: Talon of Tiamat Spellcasting (Fey)
A50: const int | B50: FEAT_TNECRO_SPELLCASTING_FEY | C50: = | D50: 18246 | E50: ; | F50: const int FEAT_TNECRO_SPELLCASTING_FEY = 18246; | H50: True Necromancer Spellcasting (Aberration)
A51: const int | B51: FEAT_ULTMAGUS_SPELLCASTING_FEY | C51: = | D51: 18247 | E51: ; | F51: const int FEAT_ULTMAGUS_SPELLCASTING_FEY = 18247; | H51: Ultimate Magus Spellcasting (Fey)
A52: const int | B52: FEAT_UNSEEN_SPELLCASTING_FEY | C52: = | D52: 18248 | E52: ; | F52: const int FEAT_UNSEEN_SPELLCASTING_FEY = 18248; | H52: Unseen Spellcasting (Fey)
A53: const int | B53: FEAT_VIRTUOSO_SPELLCASTING_FEY | C53: = | D53: 18249 | E53: ; | F53: const int FEAT_VIRTUOSO_SPELLCASTING_FEY = 18249; | H53: Virtuoso Spellcasting (Fey)
A54: const int | B54: FEAT_WILDMAGE_SPELLCASTING_FEY | C54: = | D54: 18250 | E54: ; | F54: const int FEAT_WILDMAGE_SPELLCASTING_FEY = 18250; | H54: Wild Mage Spellcasting (Fey)
A55: const int | B55: FEAT_WWOC_SPELLCASTING_FEY | C55: = | D55: 18251 | E55: ; | F55: const int FEAT_WWOC_SPELLCASTING_FEY = 18251; | H55: War Wizard of Cormyr Spellcasting (Fey)
B57: //:: Aberration RHD spellcasting marker feats | F57: =CONCATENATE(A57, B57, C57, D57, E57) -> //:: Aberration RHD spellcasting marker feats
A58: const int | B58: FEAT_ABCHAMP_SPELLCASTING_ABERRATION | C58: = | D58: =SUM(D55+1) -> 18252 | E58: ; | F58: const int FEAT_ABCHAMP_SPELLCASTING_ABERRATION = 18252; | H58: Abjurant Champion Spellcasting (Aberration)
A59: const int | B59: FEAT_ACOLYTE_SPELLCASTING_ABERRATION | C59: = | D59: =SUM(D58+1) -> 18253 | E59: ; | F59: const int FEAT_ACOLYTE_SPELLCASTING_ABERRATION = 18253; | H59: Acolyte of the Skin Spellcasting (Aberration)
A60: const int | B60: FEAT_ALCHEM_SPELLCASTING_ABERRATION | C60: = | D60: 18254 | E60: ; | F60: const int FEAT_ALCHEM_SPELLCASTING_ABERRATION = 18254; | H60: Master Alchemist Spellcasting (Aberration)
A61: const int | B61: FEAT_ALIENIST_SPELLCASTING_ABERRATION | C61: = | D61: 18255 | E61: ; | F61: const int FEAT_ALIENIST_SPELLCASTING_ABERRATION = 18255; | H61: Alienist Spellcasting (Aberration)
A62: const int | B62: FEAT_ANIMA_SPELLCASTING_ABERRATION | C62: = | D62: 18256 | E62: ; | F62: const int FEAT_ANIMA_SPELLCASTING_ABERRATION = 18256; | H62: Anima Mage Spellcasting (Aberration)
A63: const int | B63: FEAT_ARCHMAGE_SPELLCASTING_ABERRATION | C63: = | D63: 18257 | E63: ; | F63: const int FEAT_ARCHMAGE_SPELLCASTING_ABERRATION = 18257; | H63: Archmage Spellcasting (Aberration)
A64: const int | B64: FEAT_ARCTRICK_SPELLCASTING_ABERRATION | C64: = | D64: 18258 | E64: ; | F64: const int FEAT_ARCTRICK_SPELLCASTING_ABERRATION = 18258; | H64: Arcane Trickster Spellcasting (Aberration)
A65: const int | B65: FEAT_ASMODEUS_SPELLCASTING_ABERRATION | C65: = | D65: 18259 | E65: ; | F65: const int FEAT_ASMODEUS_SPELLCASTING_ABERRATION = 18259; | H65: Disciple of Asmodeus Spellcasting (Aberration)
A66: const int | B66: FEAT_BSINGER_SPELLCASTING_ABERRATION | C66: = | D66: 18260 | E66: ; | F66: =CONCATENATE(A66, B66, C66, D66, E66) -> const int FEAT_BSINGER_SPELLCASTING_ABERRATION = 18260; | H66: Bladesinger Spellcasting (Aberration)
A67: const int | B67: FEAT_BLDMAGUS_SPELLCASTING_ABERRATION | C67: = | D67: 18261 | E67: ; | F67: const int FEAT_BLDMAGUS_SPELLCASTING_ABERRATION = 18261; | H67: Blood Magus Spellcasting (Aberration)
A68: const int | B68: FEAT_CMANCER_SPELLCASTING_ABERRATION | C68: = | D68: 18262 | E68: ; | F68: const int FEAT_CMANCER_SPELLCASTING_ABERRATION = 18262; | H68: Cerebremancer Spellcasting (Aberration)
A69: const int | B69: FEAT_DIABOLIST_SPELLCASTING_ABERRATION | C69: = | D69: 18263 | E69: ; | F69: =CONCATENATE(A69, B69, C69, D69, E69) -> const int FEAT_DIABOLIST_SPELLCASTING_ABERRATION = 18263; | H69: Diabolist Spellcasting (Aberration)
A70: const int | B70: FEAT_DHEART_SPELLCASTING_ABERRATION | C70: = | D70: 18264 | E70: ; | F70: const int FEAT_DHEART_SPELLCASTING_ABERRATION = 18264; | H70: Dragonheart Mage Spellcasting (Aberration)
A71: const int | B71: FEAT_DSONG_SPELLCASTING_ABERRATION | C71: = | D71: 18265 | E71: ; | F71: const int FEAT_DSONG_SPELLCASTING_ABERRATION = 18265; | H71: Dragonsong Lyrist Spellcasting (Aberration)
A72: const int | B72: FEAT_EKNIGHT_SPELLCASTING_ABERRATION | C72: = | D72: 18266 | E72: ; | F72: const int FEAT_EKNIGHT_SPELLCASTING_ABERRATION = 18266; | H72: Eldritch Knight Spellcasting (Aberration)
A73: const int | B73: FEAT_ENLIGHTENEDFIST_SPELLCASTING_ABERRATION | C73: = | D73: 18267 | E73: ; | F73: const int FEAT_ENLIGHTENEDFIST_SPELLCASTING_ABERRATION = 18267; | H73: Enlightened Fist Spellcasting (Aberration)
A74: const int | B74: FEAT_ELESAVANT_SPELLCASTING_ABERRATION | C74: = | D74: 18268 | E74: ; | F74: const int FEAT_ELESAVANT_SPELLCASTING_ABERRATION = 18268; | H74: Elemental Savant Spellcasting (Aberration)
A75: const int | B75: FEAT_ETHEURGE_SPELLCASTING_ABERRATION | C75: = | D75: 18269 | E75: ; | F75: const int FEAT_ETHEURGE_SPELLCASTING_ABERRATION = 18269; | H75: Eldritch Theurge Spellcasting (Aberration)
A76: const int | B76: FEAT_FMM_SPELLCASTING_ABERRATION | C76: = | D76: 18270 | E76: ; | F76: const int FEAT_FMM_SPELLCASTING_ABERRATION = 18270; | H76: Force Missile Mage Spellcasting (Aberration)
A77: const int | B77: FEAT_FOCHULAN_LYRIST_SPELLCASTING_ABERRATION | C77: = | D77: 18271 | E77: ; | F77: const int FEAT_FOCHULAN_LYRIST_SPELLCASTING_ABERRATION = 18271; | H77: Fochulan Lyrist Spellcasting (Aberration)
A78: const int | B78: FEAT_FROSTMAGE_SPELLCASTING_ABERRATION | C78: = | D78: 18272 | E78: ; | F78: const int FEAT_FROSTMAGE_SPELLCASTING_ABERRATION = 18272; | H78: Frost Mage Spellcasting (Aberration)
A79: const int | B79: FEAT_GRAZZT_SPELLCASTING_ABERRATION | C79: = | D79: 18273 | E79: ; | F79: const int FEAT_GRAZZT_SPELLCASTING_ABERRATION = 18273; | H79: Thrall of Graz'zt Spellcasting (Aberration)
A80: const int | B80: FEAT_HARPERM_SPELLCASTING_ABERRATION | C80: = | D80: 18274 | E80: ; | F80: const int FEAT_HARPERM_SPELLCASTING_ABERRATION = 18274; | H80: Harper Mage Spellcasting (Aberration)
A81: const int | B81: FEAT_HATHRAN_SPELLCASTING_ABERRATION | C81: = | D81: 18275 | E81: ; | F81: const int FEAT_HATHRAN_SPELLCASTING_ABERRATION = 18275; | H81: Hathran Spellcasting (Aberration)
A82: const int | B82: FEAT_HAVOC_SPELLCASTING_ABERRATION | C82: = | D82: 18276 | E82: ; | F82: const int FEAT_HAVOC_SPELLCASTING_ABERRATION = 18276; | H82: Havoc Mage Spellcasting (Aberration)
A83: const int | B83: FEAT_JPM_SPELLCASTING_ABERRATION | C83: = | D83: 18277 | E83: ; | F83: const int FEAT_JPM_SPELLCASTING_ABERRATION = 18277; | H83: Jade Phoenix Mage Spellcasting (Aberration)
A84: const int | B84: FEAT_JUDICATOR_SPELLCASTING_ABERRATION | C84: = | D84: 18278 | E84: ; | F84: const int FEAT_JUDICATOR_SPELLCASTING_ABERRATION = 18278; | H84: Drow Judicator Spellcasting (Aberration)
A85: const int | B85: FEAT_MAESTER_SPELLCASTING_ABERRATION | C85: = | D85: 18279 | E85: ; | F85: const int FEAT_MAESTER_SPELLCASTING_ABERRATION = 18279; | H85: Maester Spellcasting (Aberration)
A86: const int | B86: FEAT_MAGEKILLER_SPELLCASTING_ABERRATION | C86: = | D86: 18280 | E86: ; | F86: const int FEAT_MAGEKILLER_SPELLCASTING_ABERRATION = 18280; | H86: Mage Killer Spellcasting (Aberration)
A87: const int | B87: FEAT_MHARPER_SPELLCASTING_ABERRATION | C87: = | D87: 18281 | E87: ; | F87: const int FEAT_MHARPER_SPELLCASTING_ABERRATION = 18281; | H87: Master Harper Spellcasting (Aberration)
A88: const int | B88: FEAT_MYSTIC_THEURGE_SPELLCASTING_ABERRATION | C88: = | D88: 18282 | E88: ; | F88: const int FEAT_MYSTIC_THEURGE_SPELLCASTING_ABERRATION = 18282; | H88: Mystic Theurge Spellcasting (Aberration)
A89: const int | B89: FEAT_NOCTUMANCER_SPELLCASTING_ABERRATION | C89: = | D89: 18283 | E89: ; | F89: const int FEAT_NOCTUMANCER_SPELLCASTING_ABERRATION = 18283; | H89: Noctumancer Spellcasting (Aberration)
A90: const int | B90: FEAT_OOZEMASTER_SPELLCASTING_ABERRATION | C90: = | D90: 18284 | E90: ; | F90: const int FEAT_OOZEMASTER_SPELLCASTING_ABERRATION = 18284; | H90: Oozemaster Spellcasting (Aberration)
A91: const int | B91: FEAT_PALEMASTER_SPELLCASTING_ABERRATION | C91: = | D91: =SUM(D90+1) -> 18285 | E91: ; | F91: const int FEAT_PALEMASTER_SPELLCASTING_ABERRATION = 18285; | H91: Pale Master Spellcasting (Aberration)
A92: const int | B92: FEAT_RAGEMAGE_SPELLCASTING_ABERRATION | C92: = | D92: 18286 | E92: ; | F92: const int FEAT_RAGEMAGE_SPELLCASTING_ABERRATION = 18286; | H92: Rage Mage Spellcasting (Aberration)
A93: const int | B93: FEAT_SHADOWADEPT_SPELLCASTING_ABERRATION | C93: = | D93: 18287 | E93: ; | F93: const int FEAT_SHADOWADEPT_SPELLCASTING_ABERRATION = 18287; | H93: Shadow Adept Spellcasting (Aberration)
A94: const int | B94: FEAT_SOULCASTER_SPELLCASTING_ABERRATION | C94: = | D94: 18288 | E94: ; | F94: const int FEAT_SOULCASTER_SPELLCASTING_ABERRATION = 18288; | H94: Soulcaster Spellcasting (Aberration)
A95: const int | B95: FEAT_SPELLDANCER_SPELLCASTING_ABERRATION | C95: = | D95: 18289 | E95: ; | F95: const int FEAT_SPELLDANCER_SPELLCASTING_ABERRATION = 18289; | H95: Spelldancer Spellcasting (Aberration)
A96: const int | B96: FEAT_SSWORD_SPELLCASTING_ABERRATION | C96: = | D96: 18290 | E96: ; | F96: const int FEAT_SSWORD_SPELLCASTING_ABERRATION = 18290; | H96: Spellsword Spellcasting (Aberration)
A97: const int | B97: FEAT_TIAMAT_SPELLCASTING_ABERRATION | C97: = | D97: 18291 | E97: ; | F97: const int FEAT_TIAMAT_SPELLCASTING_ABERRATION = 18291; | H97: Talon of Tiamat Spellcasting (Aberration)
A98: const int | B98: FEAT_TNECRO_SPELLCASTING_ABERRATION | C98: = | D98: 18292 | E98: ; | F98: const int FEAT_TNECRO_SPELLCASTING_ABERRATION = 18292; | H98: True Necromancer Spellcasting (Aberration)
A99: const int | B99: FEAT_ULTMAGUS_SPELLCASTING_ABERRATION | C99: = | D99: 18293 | E99: ; | F99: const int FEAT_ULTMAGUS_SPELLCASTING_ABERRATION = 18293; | H99: Ultimate Magus Spellcasting (Aberration)
A100: const int | B100: FEAT_UNSEEN_SPELLCASTING_ABERRATION | C100: = | D100: 18294 | E100: ; | F100: const int FEAT_UNSEEN_SPELLCASTING_ABERRATION = 18294; | H100: Unseen Seer Spellcasting (Aberration)
A101: const int | B101: FEAT_VIRTUOSO_SPELLCASTING_ABERRATION | C101: = | D101: 18295 | E101: ; | F101: const int FEAT_VIRTUOSO_SPELLCASTING_ABERRATION = 18295; | H101: Virtuoso Spellcasting (Aberration)
A102: const int | B102: FEAT_WAYFARER_SPELLCASTING_ABERRATION | C102: = | D102: 18296 | E102: ; | F102: const int FEAT_WAYFARER_SPELLCASTING_ABERRATION = 18296; | H102: Wayfarer Guide Spellcasting (Aberration)
A103: const int | B103: FEAT_WILDMAGE_SPELLCASTING_ABERRATION | C103: = | D103: 18297 | E103: ; | F103: const int FEAT_WILDMAGE_SPELLCASTING_ABERRATION = 18297; | H103: Wild Mage Spellcasting (Aberration)
A104: const int | B104: FEAT_WWOC_SPELLCASTING_ABERRATION | C104: = | D104: 18298 | E104: ; | F104: const int FEAT_WWOC_SPELLCASTING_ABERRATION = 18298; | H104: War Wizard of Cormyr Spellcasting (Aberration)
B106: //:: Monstrous RHD spellcasting marker feats | F106: =CONCATENATE(A106, B106, C106, D106, E106) -> //:: Monstrous RHD spellcasting marker feats
A107: const int | B107: FEAT_ABCHAMP_SPELLCASTING_MONSTROUS | C107: = | D107: =SUM(D104+1) -> 18299 | E107: ; | F107: const int FEAT_ABCHAMP_SPELLCASTING_MONSTROUS = 18299; | H107: Abjurant Champion Spellcasting (Monstrous Humaniod)
A108: const int | B108: FEAT_ACOLYTE_SPELLCASTING_MONSTROUS | C108: = | D108: =SUM(D107+1) -> 18300 | E108: ; | F108: const int FEAT_ACOLYTE_SPELLCASTING_MONSTROUS = 18300; | H108: Acolyte of the Skin Spellcasting (Monstrous Humaniod)
A109: const int | B109: FEAT_ALCHEM_SPELLCASTING_MONSTROUS | C109: = | D109: 18301 | E109: ; | F109: const int FEAT_ALCHEM_SPELLCASTING_MONSTROUS = 18301; | H109: Master Alchemist Spellcasting (Monstrous Humaniod)
A110: const int | B110: FEAT_ALIENIST_SPELLCASTING_MONSTROUS | C110: = | D110: 18302 | E110: ; | F110: const int FEAT_ALIENIST_SPELLCASTING_MONSTROUS = 18302; | H110: Alienist Spellcasting (Monstrous Humaniod)
A111: const int | B111: FEAT_ANIMA_SPELLCASTING_MONSTROUS | C111: = | D111: 18303 | E111: ; | F111: const int FEAT_ANIMA_SPELLCASTING_MONSTROUS = 18303; | H111: Anima Mage Spellcasting (Monstrous Humaniod)
A112: const int | B112: FEAT_ARCHMAGE_SPELLCASTING_MONSTROUS | C112: = | D112: 18304 | E112: ; | F112: const int FEAT_ARCHMAGE_SPELLCASTING_MONSTROUS = 18304; | H112: Archmage Spellcasting (Monstrous Humaniod)
A113: const int | B113: FEAT_ARCTRICK_SPELLCASTING_MONSTROUS | C113: = | D113: 18305 | E113: ; | F113: const int FEAT_ARCTRICK_SPELLCASTING_MONSTROUS = 18305; | H113: Arcane Trickster Spellcasting (Monstrous Humaniod)
A114: const int | B114: FEAT_ASMODEUS_SPELLCASTING_MONSTROUS | C114: = | D114: 18306 | E114: ; | F114: const int FEAT_ASMODEUS_SPELLCASTING_MONSTROUS = 18306; | H114: Disciple of Asmodeus Spellcasting (Monstrous Humaniod)
A115: const int | B115: FEAT_BSINGER_SPELLCASTING_MONSTROUS | C115: = | D115: 18307 | E115: ; | F115: =CONCATENATE(A115, B115, C115, D115, E115) -> const int FEAT_BSINGER_SPELLCASTING_MONSTROUS = 18307; | H115: Bladesinger Spellcasting (Monstrous Humaniod)
A116: const int | B116: FEAT_BLDMAGUS_SPELLCASTING_MONSTROUS | C116: = | D116: 18308 | E116: ; | F116: const int FEAT_BLDMAGUS_SPELLCASTING_MONSTROUS = 18308; | H116: Blood Magus Spellcasting (Monstrous Humaniod)
A117: const int | B117: FEAT_CMANCER_SPELLCASTING_MONSTROUS | C117: = | D117: 18309 | E117: ; | F117: const int FEAT_CMANCER_SPELLCASTING_MONSTROUS = 18309; | H117: Cerebremancer Spellcasting (Monstrous Humaniod)
A118: const int | B118: FEAT_DHEART_SPELLCASTING_MONSTROUS | C118: = | D118: 18310 | E118: ; | F118: const int FEAT_DHEART_SPELLCASTING_MONSTROUS = 18310; | H118: Diabolist Spellcasting (Monstrous Humaniod)
A119: const int | B119: FEAT_DIABOLIST_SPELLCASTING_MONSTROUS | C119: = | D119: 18311 | E119: ; | F119: const int FEAT_DIABOLIST_SPELLCASTING_MONSTROUS = 18311; | H119: Dragonheart Mage Spellcasting (Monstrous Humaniod)
A120: const int | B120: FEAT_DSONG_SPELLCASTING_MONSTROUS | C120: = | D120: 18312 | E120: ; | F120: const int FEAT_DSONG_SPELLCASTING_MONSTROUS = 18312; | H120: Dragonsong Lyrist Spellcasting (Monstrous Humaniod)
A121: const int | B121: FEAT_EKNIGHT_SPELLCASTING_MONSTROUS | C121: = | D121: 18313 | E121: ; | F121: const int FEAT_EKNIGHT_SPELLCASTING_MONSTROUS = 18313; | H121: Eldritch Knight Spellcasting (Monstrous Humaniod)
A122: const int | B122: FEAT_ENLIGHTENEDFIST_SPELLCASTING_MONSTROUS | C122: = | D122: 18314 | E122: ; | F122: const int FEAT_ENLIGHTENEDFIST_SPELLCASTING_MONSTROUS = 18314; | H122: Enlightened Fist Spellcasting (Monstrous Humaniod)
A123: const int | B123: FEAT_ELESAVANT_SPELLCASTING_MONSTROUS | C123: = | D123: 18315 | E123: ; | F123: const int FEAT_ELESAVANT_SPELLCASTING_MONSTROUS = 18315; | H123: Elemental Savant Spellcasting (Monstrous Humaniod)
A124: const int | B124: FEAT_ETHEURGE_SPELLCASTING_MONSTROUS | C124: = | D124: 18316 | E124: ; | F124: const int FEAT_ETHEURGE_SPELLCASTING_MONSTROUS = 18316; | H124: Eldritch Theurge Spellcasting (Monstrous Humaniod)
A125: const int | B125: FEAT_FMM_SPELLCASTING_MONSTROUS | C125: = | D125: 18317 | E125: ; | F125: const int FEAT_FMM_SPELLCASTING_MONSTROUS = 18317; | H125: Force Missile Mage Spellcasting (Monstrous Humaniod)
A126: const int | B126: FEAT_FOCHULAN_LYRIST_SPELLCASTING_MONSTROUS | C126: = | D126: 18318 | E126: ; | F126: const int FEAT_FOCHULAN_LYRIST_SPELLCASTING_MONSTROUS = 18318; | H126: Fochulan Lyrist Spellcasting (Monstrous Humaniod)
A127: const int | B127: FEAT_FROSTMAGE_SPELLCASTING_MONSTROUS | C127: = | D127: 18319 | E127: ; | F127: const int FEAT_FROSTMAGE_SPELLCASTING_MONSTROUS = 18319; | H127: Frost Mage Spellcasting (Monstrous Humaniod)
A128: const int | B128: FEAT_GRAZZT_SPELLCASTING_MONSTROUS | C128: = | D128: 18320 | E128: ; | F128: const int FEAT_GRAZZT_SPELLCASTING_MONSTROUS = 18320; | H128: Thrall of Graz'zt Spellcasting (Monstrous Humaniod)
A129: const int | B129: FEAT_HARPERM_SPELLCASTING_MONSTROUS | C129: = | D129: 18321 | E129: ; | F129: const int FEAT_HARPERM_SPELLCASTING_MONSTROUS = 18321; | H129: Harper Mage Spellcasting (Monstrous Humaniod)
A130: const int | B130: FEAT_HATHRAN_SPELLCASTING_MONSTROUS | C130: = | D130: 18322 | E130: ; | F130: const int FEAT_HATHRAN_SPELLCASTING_MONSTROUS = 18322; | H130: Hathran Spellcasting (Monstrous Humaniod)
A131: const int | B131: FEAT_HAVOC_SPELLCASTING_MONSTROUS | C131: = | D131: 18323 | E131: ; | F131: const int FEAT_HAVOC_SPELLCASTING_MONSTROUS = 18323; | H131: Havoc Mage Spellcasting (Monstrous Humaniod)
A132: const int | B132: FEAT_JPM_SPELLCASTING_MONSTROUS | C132: = | D132: 18324 | E132: ; | F132: const int FEAT_JPM_SPELLCASTING_MONSTROUS = 18324; | H132: Jade Phoenix Mage Spellcasting (Monstrous Humaniod)
A133: const int | B133: FEAT_JUDICATOR_SPELLCASTING_MONSTROUS | C133: = | D133: 18325 | E133: ; | F133: const int FEAT_JUDICATOR_SPELLCASTING_MONSTROUS = 18325; | H133: Drow Judicator Spellcasting (Monstrous Humaniod)
A134: const int | B134: FEAT_MAESTER_SPELLCASTING_MONSTROUS | C134: = | D134: 18326 | E134: ; | F134: const int FEAT_MAESTER_SPELLCASTING_MONSTROUS = 18326; | H134: Maester Spellcasting (Monstrous Humaniod)
A135: const int | B135: FEAT_MAGEKILLER_SPELLCASTING_MONSTROUS | C135: = | D135: 18327 | E135: ; | F135: const int FEAT_MAGEKILLER_SPELLCASTING_MONSTROUS = 18327; | H135: Mage Killer Spellcasting (Monstrous Humaniod)
A136: const int | B136: FEAT_MHARPER_SPELLCASTING_MONSTROUS | C136: = | D136: 18328 | E136: ; | F136: const int FEAT_MHARPER_SPELLCASTING_MONSTROUS = 18328; | H136: Master Harper Spellcasting (Monstrous Humaniod)
A137: const int | B137: FEAT_MYSTIC_THEURGE_SPELLCASTING_MONSTROUS | C137: = | D137: 18329 | E137: ; | F137: const int FEAT_MYSTIC_THEURGE_SPELLCASTING_MONSTROUS = 18329; | H137: Mystic Theurge Spellcasting (Monstrous Humaniod)
A138: const int | B138: FEAT_NOCTUMANCER_SPELLCASTING_MONSTROUS | C138: = | D138: 18330 | E138: ; | F138: const int FEAT_NOCTUMANCER_SPELLCASTING_MONSTROUS = 18330; | H138: Noctumancer Spellcasting (Monstrous Humaniod)
A139: const int | B139: FEAT_OOZEMASTER_SPELLCASTING_MONSTROUS | C139: = | D139: 18331 | E139: ; | F139: const int FEAT_OOZEMASTER_SPELLCASTING_MONSTROUS = 18331; | H139: Oozemaster Spellcasting (Monstrous Humaniod)
A140: const int | B140: FEAT_PALEMASTER_SPELLCASTING_MONSTROUS | C140: = | D140: 18332 | E140: ; | F140: const int FEAT_PALEMASTER_SPELLCASTING_MONSTROUS = 18332; | H140: Pale Master Spellcasting (Monstrous Humaniod)
A141: const int | B141: FEAT_RAGEMAGE_SPELLCASTING_MONSTROUS | C141: = | D141: 18333 | E141: ; | F141: const int FEAT_RAGEMAGE_SPELLCASTING_MONSTROUS = 18333; | H141: Rage Mage Spellcasting (Monstrous Humaniod)
A142: const int | B142: FEAT_SHADOWADEPT_SPELLCASTING_MONSTROUS | C142: = | D142: 18334 | E142: ; | F142: const int FEAT_SHADOWADEPT_SPELLCASTING_MONSTROUS = 18334; | H142: Shadow Adept Spellcasting (Monstrous Humaniod)
A143: const int | B143: FEAT_SOULCASTER_SPELLCASTING_MONSTROUS | C143: = | D143: 18335 | E143: ; | F143: const int FEAT_SOULCASTER_SPELLCASTING_MONSTROUS = 18335; | H143: Soulcaster Spellcasting (Monstrous Humaniod)
A144: const int | B144: FEAT_SPELLDANCER_SPELLCASTING_MONSTROUS | C144: = | D144: 18336 | E144: ; | F144: const int FEAT_SPELLDANCER_SPELLCASTING_MONSTROUS = 18336; | H144: Spelldancer Spellcasting (Monstrous Humaniod)
A145: const int | B145: FEAT_SSWORD_SPELLCASTING_MONSTROUS | C145: = | D145: 18337 | E145: ; | F145: const int FEAT_SSWORD_SPELLCASTING_MONSTROUS = 18337; | H145: Spellsword Spellcasting (Monstrous Humaniod)
A146: const int | B146: FEAT_TIAMAT_SPELLCASTING_MONSTROUS | C146: = | D146: 18338 | E146: ; | F146: const int FEAT_TIAMAT_SPELLCASTING_MONSTROUS = 18338; | H146: Talon of Tiamat Spellcasting (Monstrous Humaniod)
A147: const int | B147: FEAT_TNECRO_SPELLCASTING_MONSTROUS | C147: = | D147: 18339 | E147: ; | F147: const int FEAT_TNECRO_SPELLCASTING_MONSTROUS = 18339; | H147: True Necromancer Spellcasting (Monstrous Humaniod)
A148: const int | B148: FEAT_ULTMAGUS_SPELLCASTING_MONSTROUS | C148: = | D148: 18340 | E148: ; | F148: const int FEAT_ULTMAGUS_SPELLCASTING_MONSTROUS = 18340; | H148: Ultimate Magus Spellcasting (Monstrous Humaniod)
A149: const int | B149: FEAT_UNSEEN_SPELLCASTING_MONSTROUS | C149: = | D149: 18341 | E149: ; | F149: const int FEAT_UNSEEN_SPELLCASTING_MONSTROUS = 18341; | H149: Unseen Seer Spellcasting (Monstrous Humaniod)
A150: const int | B150: FEAT_VIRTUOSO_SPELLCASTING_MONSTROUS | C150: = | D150: 18342 | E150: ; | F150: const int FEAT_VIRTUOSO_SPELLCASTING_MONSTROUS = 18342; | H150: Virtuoso Spellcasting (Monstrous Humaniod)
A151: const int | B151: FEAT_WAYFARER_SPELLCASTING_MONSTROUS | C151: = | D151: 18343 | E151: ; | F151: const int FEAT_WAYFARER_SPELLCASTING_MONSTROUS = 18343; | H151: Wayfarer Guide Spellcasting (Monstrous Humaniod)
A152: const int | B152: FEAT_WILDMAGE_SPELLCASTING_MONSTROUS | C152: = | D152: 18344 | E152: ; | F152: const int FEAT_WILDMAGE_SPELLCASTING_MONSTROUS = 18344; | H152: Wild Mage Spellcasting (Monstrous Humaniod)
A153: const int | B153: FEAT_WWOC_SPELLCASTING_MONSTROUS | C153: = | D153: 18345 | E153: ; | F153: const int FEAT_WWOC_SPELLCASTING_MONSTROUS = 18345; | H153: War Wizard of Cormyr Spellcasting (Monstrous Humaniod)
B155: //:: Outsider RHD spellcasting marker feats | F155: =CONCATENATE(A155, B155, C155, D155, E155) -> //:: Outsider RHD spellcasting marker feats
A156: const int | B156: FEAT_ABCHAMP_SPELLCASTING_OUTSIDER | C156: = | D156: =SUM(D153+1) -> 18346 | E156: ; | F156: const int FEAT_ABCHAMP_SPELLCASTING_OUTSIDER = 18346; | H156: Abjurant Champion Spellcasting (Outsider)
A157: const int | B157: FEAT_ACOLYTE_SPELLCASTING_OUTSIDER | C157: = | D157: =SUM(D156+1) -> 18347 | E157: ; | F157: const int FEAT_ACOLYTE_SPELLCASTING_OUTSIDER = 18347; | H157: Acolyte of the Skin Spellcasting (Outsider)
A158: const int | B158: FEAT_ALCHEM_SPELLCASTING_OUTSIDER | C158: = | D158: 18348 | E158: ; | F158: const int FEAT_ALCHEM_SPELLCASTING_OUTSIDER = 18348; | H158: Master Alchemist Spellcasting (Outsider)
A159: const int | B159: FEAT_ALIENIST_SPELLCASTING_OUTSIDER | C159: = | D159: 18349 | E159: ; | F159: const int FEAT_ALIENIST_SPELLCASTING_OUTSIDER = 18349; | H159: Alienist Spellcasting (Outsider)
A160: const int | B160: FEAT_ANIMA_SPELLCASTING_OUTSIDER | C160: = | D160: 18350 | E160: ; | F160: const int FEAT_ANIMA_SPELLCASTING_OUTSIDER = 18350; | H160: Anima Mage Spellcasting (Outsider)
A161: const int | B161: FEAT_ARCHMAGE_SPELLCASTING_OUTSIDER | C161: = | D161: 18351 | E161: ; | F161: const int FEAT_ARCHMAGE_SPELLCASTING_OUTSIDER = 18351; | H161: Archmage Spellcasting (Outsider)
A162: const int | B162: FEAT_ARCTRICK_SPELLCASTING_OUTSIDER | C162: = | D162: 18352 | E162: ; | F162: const int FEAT_ARCTRICK_SPELLCASTING_OUTSIDER = 18352; | H162: Arcane Trickster Spellcasting (Outsider)
A163: const int | B163: FEAT_ASMODEUS_SPELLCASTING_OUTSIDER | C163: = | D163: 18353 | E163: ; | F163: const int FEAT_ASMODEUS_SPELLCASTING_OUTSIDER = 18353; | H163: Disciple of Asmodeus Spellcasting (Outsider)
A164: const int | B164: FEAT_BSINGER_SPELLCASTING_OUTSIDER | C164: = | D164: 18354 | E164: ; | F164: =CONCATENATE(A164, B164, C164, D164, E164) -> const int FEAT_BSINGER_SPELLCASTING_OUTSIDER = 18354; | H164: Bladesinger Spellcasting (Outsider)
A165: const int | B165: FEAT_BLDMAGUS_SPELLCASTING_OUTSIDER | C165: = | D165: 18355 | E165: ; | F165: const int FEAT_BLDMAGUS_SPELLCASTING_OUTSIDER = 18355; | H165: Blood Magus Spellcasting (Outsider)
A166: const int | B166: FEAT_CMANCER_SPELLCASTING_OUTSIDER | C166: = | D166: 18356 | E166: ; | F166: const int FEAT_CMANCER_SPELLCASTING_OUTSIDER = 18356; | H166: Cerebremancer Spellcasting (Outsider)
A167: const int | B167: FEAT_DHEART_SPELLCASTING_OUTSIDER | C167: = | D167: 18357 | E167: ; | F167: const int FEAT_DHEART_SPELLCASTING_OUTSIDER = 18357; | H167: Diabolist Spellcasting (Outsider)
A168: const int | B168: FEAT_DIABOLIST_SPELLCASTING_OUTSIDER | C168: = | D168: 18358 | E168: ; | F168: const int FEAT_DIABOLIST_SPELLCASTING_OUTSIDER = 18358; | H168: Dragonheart Mage Spellcasting (Outsider)
A169: const int | B169: FEAT_DSONG_SPELLCASTING_OUTSIDER | C169: = | D169: 18359 | E169: ; | F169: const int FEAT_DSONG_SPELLCASTING_OUTSIDER = 18359; | H169: Dragonsong Lyrist Spellcasting (Outsider)
A170: const int | B170: FEAT_EKNIGHT_SPELLCASTING_OUTSIDER | C170: = | D170: 18360 | E170: ; | F170: const int FEAT_EKNIGHT_SPELLCASTING_OUTSIDER = 18360; | H170: Eldritch Knight Spellcasting (Outsider)
A171: const int | B171: FEAT_ENLIGHTENEDFIST_SPELLCASTING_OUTSIDER | C171: = | D171: 18361 | E171: ; | F171: const int FEAT_ENLIGHTENEDFIST_SPELLCASTING_OUTSIDER = 18361; | H171: Enlightened Fist Spellcasting (Outsider)
A172: const int | B172: FEAT_ELESAVANT_SPELLCASTING_OUTSIDER | C172: = | D172: 18362 | E172: ; | F172: const int FEAT_ELESAVANT_SPELLCASTING_OUTSIDER = 18362; | H172: Elemental Savant Spellcasting (Outsider)
A173: const int | B173: FEAT_ETHEURGE_SPELLCASTING_OUTSIDER | C173: = | D173: 18363 | E173: ; | F173: const int FEAT_ETHEURGE_SPELLCASTING_OUTSIDER = 18363; | H173: Eldritch Theurge Spellcasting (Outsider)
A174: const int | B174: FEAT_FMM_SPELLCASTING_OUTSIDER | C174: = | D174: 18364 | E174: ; | F174: const int FEAT_FMM_SPELLCASTING_OUTSIDER = 18364; | H174: Force Missile Mage Spellcasting (Outsider)
A175: const int | B175: FEAT_FOCHULAN_LYRIST_SPELLCASTING_OUTSIDER | C175: = | D175: 18365 | E175: ; | F175: const int FEAT_FOCHULAN_LYRIST_SPELLCASTING_OUTSIDER = 18365; | H175: Fochulan Lyrist Spellcasting (Outsider)
A176: const int | B176: FEAT_FROSTMAGE_SPELLCASTING_OUTSIDER | C176: = | D176: 18366 | E176: ; | F176: const int FEAT_FROSTMAGE_SPELLCASTING_OUTSIDER = 18366; | H176: Frost Mage Spellcasting (Outsider)
A177: const int | B177: FEAT_GRAZZT_SPELLCASTING_OUTSIDER | C177: = | D177: 18367 | E177: ; | F177: const int FEAT_GRAZZT_SPELLCASTING_OUTSIDER = 18367; | H177: Thrall of Graz'zt Spellcasting (Outsider)
A178: const int | B178: FEAT_HARPERM_SPELLCASTING_OUTSIDER | C178: = | D178: 18368 | E178: ; | F178: const int FEAT_HARPERM_SPELLCASTING_OUTSIDER = 18368; | H178: Harper Mage Spellcasting (Outsider)
A179: const int | B179: FEAT_HATHRAN_SPELLCASTING_OUTSIDER | C179: = | D179: 18369 | E179: ; | F179: const int FEAT_HATHRAN_SPELLCASTING_OUTSIDER = 18369; | H179: Hathran Spellcasting (Outsider)
A180: const int | B180: FEAT_HAVOC_SPELLCASTING_OUTSIDER | C180: = | D180: 18370 | E180: ; | F180: const int FEAT_HAVOC_SPELLCASTING_OUTSIDER = 18370; | H180: Havoc Mage Spellcasting (Outsider)
A181: const int | B181: FEAT_JPM_SPELLCASTING_OUTSIDER | C181: = | D181: 18371 | E181: ; | F181: const int FEAT_JPM_SPELLCASTING_OUTSIDER = 18371; | H181: Jade Phoenix Mage Spellcasting (Outsider)
A182: const int | B182: FEAT_JUDICATOR_SPELLCASTING_OUTSIDER | C182: = | D182: 18372 | E182: ; | F182: const int FEAT_JUDICATOR_SPELLCASTING_OUTSIDER = 18372; | H182: Drow Judicator Spellcasting (Outsider)
A183: const int | B183: FEAT_MAESTER_SPELLCASTING_OUTSIDER | C183: = | D183: 18373 | E183: ; | F183: const int FEAT_MAESTER_SPELLCASTING_OUTSIDER = 18373; | H183: Maester Spellcasting (Outsider)
A184: const int | B184: FEAT_MAGEKILLER_SPELLCASTING_OUTSIDER | C184: = | D184: 18374 | E184: ; | F184: const int FEAT_MAGEKILLER_SPELLCASTING_OUTSIDER = 18374; | H184: Mage Killer Spellcasting (Outsider)
A185: const int | B185: FEAT_MHARPER_SPELLCASTING_OUTSIDER | C185: = | D185: 18375 | E185: ; | F185: const int FEAT_MHARPER_SPELLCASTING_OUTSIDER = 18375; | H185: Master Harper Spellcasting (Outsider)
A186: const int | B186: FEAT_MYSTIC_THEURGE_SPELLCASTING_OUTSIDER | C186: = | D186: 18376 | E186: ; | F186: const int FEAT_MYSTIC_THEURGE_SPELLCASTING_OUTSIDER = 18376; | H186: Mystic Theurge Spellcasting (Outsider)
A187: const int | B187: FEAT_NOCTUMANCER_SPELLCASTING_OUTSIDER | C187: = | D187: 18377 | E187: ; | F187: const int FEAT_NOCTUMANCER_SPELLCASTING_OUTSIDER = 18377; | H187: Noctumancer Spellcasting (Outsider)
A188: const int | B188: FEAT_OOZEMASTER_SPELLCASTING_OUTSIDER | C188: = | D188: 18378 | E188: ; | F188: const int FEAT_OOZEMASTER_SPELLCASTING_OUTSIDER = 18378; | H188: Oozemaster Spellcasting (Outsider)
A189: const int | B189: FEAT_PALEMASTER_SPELLCASTING_OUTSIDER | C189: = | D189: 18379 | E189: ; | F189: const int FEAT_PALEMASTER_SPELLCASTING_OUTSIDER = 18379; | H189: Pale Master Spellcasting (Outsider)
A190: const int | B190: FEAT_RAGEMAGE_SPELLCASTING_OUTSIDER | C190: = | D190: 18380 | E190: ; | F190: const int FEAT_RAGEMAGE_SPELLCASTING_OUTSIDER = 18380; | H190: Rage Mage Spellcasting (Outsider)
A191: const int | B191: FEAT_SHADOWADEPT_SPELLCASTING_OUTSIDER | C191: = | D191: 18381 | E191: ; | F191: const int FEAT_SHADOWADEPT_SPELLCASTING_OUTSIDER = 18381; | H191: Shadow Adept Spellcasting (Outsider)
A192: const int | B192: FEAT_SOULCASTER_SPELLCASTING_OUTSIDER | C192: = | D192: 18382 | E192: ; | F192: const int FEAT_SOULCASTER_SPELLCASTING_OUTSIDER = 18382; | H192: Soulcaster Spellcasting (Outsider)
A193: const int | B193: FEAT_SPELLDANCER_SPELLCASTING_OUTSIDER | C193: = | D193: 18383 | E193: ; | F193: const int FEAT_SPELLDANCER_SPELLCASTING_OUTSIDER = 18383; | H193: Spelldancer Spellcasting (Outsider)
A194: const int | B194: FEAT_SSWORD_SPELLCASTING_OUTSIDER | C194: = | D194: 18384 | E194: ; | F194: const int FEAT_SSWORD_SPELLCASTING_OUTSIDER = 18384; | H194: Spellsword Spellcasting (Outsider)
A195: const int | B195: FEAT_TIAMAT_SPELLCASTING_OUTSIDER | C195: = | D195: 18385 | E195: ; | F195: const int FEAT_TIAMAT_SPELLCASTING_OUTSIDER = 18385; | H195: Talon of Tiamat Spellcasting (Outsider)
A196: const int | B196: FEAT_TNECRO_SPELLCASTING_OUTSIDER | C196: = | D196: 18386 | E196: ; | F196: const int FEAT_TNECRO_SPELLCASTING_OUTSIDER = 18386; | H196: True Necromancer Spellcasting (Outsider)
A197: const int | B197: FEAT_ULTMAGUS_SPELLCASTING_OUTSIDER | C197: = | D197: 18387 | E197: ; | F197: const int FEAT_ULTMAGUS_SPELLCASTING_OUTSIDER = 18387; | H197: Ultimate Magus Spellcasting (Outsider)
A198: const int | B198: FEAT_UNSEEN_SPELLCASTING_OUTSIDER | C198: = | D198: 18388 | E198: ; | F198: const int FEAT_UNSEEN_SPELLCASTING_OUTSIDER = 18388; | H198: Unseen Seer Spellcasting (Outsider)
A199: const int | B199: FEAT_VIRTUOSO_SPELLCASTING_OUTSIDER | C199: = | D199: 18389 | E199: ; | F199: const int FEAT_VIRTUOSO_SPELLCASTING_OUTSIDER = 18389; | H199: Virtuoso Spellcasting (Outsider)
A200: const int | B200: FEAT_WAYFARER_SPELLCASTING_OUTSIDER | C200: = | D200: 18390 | E200: ; | F200: const int FEAT_WAYFARER_SPELLCASTING_OUTSIDER = 18390; | H200: Wayfarer Guide Spellcasting (Outsider)
A201: const int | B201: FEAT_WILDMAGE_SPELLCASTING_OUTSIDER | C201: = | D201: 18391 | E201: ; | F201: const int FEAT_WILDMAGE_SPELLCASTING_OUTSIDER = 18391; | H201: Wild Mage Spellcasting (Outsider)
A202: const int | B202: FEAT_WWOC_SPELLCASTING_OUTSIDER | C202: = | D202: 18392 | E202: ; | F202: const int FEAT_WWOC_SPELLCASTING_OUTSIDER = 18392; | H202: War Wizard of Cormyr Spellcasting (Outsider)
B204: //:: Shapechanger RHD spellcasting marker feats | F204: =CONCATENATE(A204, B204, C204, D204, E204) -> //:: Shapechanger RHD spellcasting marker feats
A205: const int | B205: FEAT_ABCHAMP_SPELLCASTING_SHAPECHANGER | C205: = | D205: =SUM(D202+1) -> 18393 | E205: ; | F205: const int FEAT_ABCHAMP_SPELLCASTING_SHAPECHANGER = 18393; | H205: Abjurant Champion Spellcasting (Shapechanger)
... 1244 more rows

Sheet Marker Feat TLK Work
H1: TLK<-> 2DA
A2: <entry id=" | B2: 75700 | C2: " lang="en" sex="m"> | D2: Bardic Spellcasting (Gloura) | E2: </entry> | F2: =CONCATENATE(A2,B2,C2,D2,E2) -> <entry id="75700" lang="en" sex="m">Bardic Spellcasting (Gloura)</entry> | H2: =SUM(B2+16777216) -> 16852916 | J2: 16852916
A3: <entry id=" | B3: =SUM(B2+1) -> 75701 | C3: " lang="en" sex="m"> | D3: Sorcerous Spellcasting (Drider) | E3: </entry> | F3: =CONCATENATE(A3,B3,C3,D3,E3) -> <entry id="75701" lang="en" sex="m">Sorcerous Spellcasting (Drider)</entry> | H3: =SUM(B3+16777216) -> 16852917 | J3: 16852917
A4: <entry id=" | B4: =SUM(B3+1) -> 75702 | C4: " lang="en" sex="m"> | D4: Sorcerous Spellcasting (Arkamoi) | E4: </entry> | F4: <entry id="75702" lang="en" sex="m">Sorcerous Spellcasting (Arkamoi)</entry> | H4: 16852918 | J4: 16852918
A5: <entry id=" | B5: 75703 | C5: " lang="en" sex="m"> | D5: Sorcerous Spellcasting (Marrrutact) | E5: </entry> | F5: <entry id="75703" lang="en" sex="m">Sorcerous Spellcasting (Marrrutact)</entry> | H5: 16852919 | J5: 16852919
A6: <entry id=" | B6: 75704 | C6: " lang="en" sex="m"> | D6: Sorcerous Spellcasting (Redspawn Arcaniss) | E6: </entry> | F6: <entry id="75704" lang="en" sex="m">Sorcerous Spellcasting (Redspawn Arcaniss)</entry> | H6: 16852920 | J6: 16852920
A7: <entry id=" | B7: 75705 | C7: " lang="en" sex="m"> | D7: Sorcerous Spellcasting (Rakshasa) | E7: </entry> | F7: <entry id="75705" lang="en" sex="m">Sorcerous Spellcasting (Rakshasa)</entry> | H7: 16852921 | J7: 16852921
A8: <entry id=" | B8: 75706 | C8: " lang="en" sex="m"> | D8: Sorcerous Spellcasting (Aranea) | E8: </entry> | F8: <entry id="75706" lang="en" sex="m">Sorcerous Spellcasting (Aranea)</entry> | H8: 16852922 | J8: 16852922
A9: <entry id=" | B9: 75707 | C9: " lang="en" sex="m"> | D9: Abjurant Champion Spellcasting (Fey) | E9: </entry> | F9: <entry id="75707" lang="en" sex="m">Abjurant Champion Spellcasting (Fey)</entry> | H9: 16852923 | J9: 16852923
A10: <entry id=" | B10: 75708 | C10: " lang="en" sex="m"> | D10: Acolyte of the Skin Spellcasting (Fey) | E10: </entry> | F10: <entry id="75708" lang="en" sex="m">Acolyte of the Skin Spellcasting (Fey)</entry> | H10: 16852924 | J10: 16852924
A11: <entry id=" | B11: 75709 | C11: " lang="en" sex="m"> | D11: Master Alchemist Spellcasting (Fey) | E11: </entry> | F11: <entry id="75709" lang="en" sex="m">Master Alchemist Spellcasting (Fey)</entry> | H11: 16852925 | J11: 16852925
A12: <entry id=" | B12: 75710 | C12: " lang="en" sex="m"> | D12: Alienist Spellcasting (Fey) | E12: </entry> | F12: <entry id="75710" lang="en" sex="m">Alienist Spellcasting (Fey)</entry> | H12: 16852926 | J12: 16852926
A13: <entry id=" | B13: 75711 | C13: " lang="en" sex="m"> | D13: Anima Mage Spellcasting (Fey) | E13: </entry> | F13: <entry id="75711" lang="en" sex="m">Anima Mage Spellcasting (Fey)</entry> | H13: 16852927 | J13: 16852927
A14: <entry id=" | B14: 75712 | C14: " lang="en" sex="m"> | D14: Archmage Spellcasting (Fey) | E14: </entry> | F14: =CONCATENATE(A14,B14,C14,D14,E14) -> <entry id="75712" lang="en" sex="m">Archmage Spellcasting (Fey)</entry> | H14: 16852928 | J14: 16852928
A15: <entry id=" | B15: 75713 | C15: " lang="en" sex="m"> | D15: Arcane Trickster Spellcasting (Fey) | E15: </entry> | F15: <entry id="75713" lang="en" sex="m">Arcane Trickster Spellcasting (Fey)</entry> | H15: 16852929 | J15: 16852929
A16: <entry id=" | B16: 75714 | C16: " lang="en" sex="m"> | D16: Disciple of Asmodeus Spellcasting (Fey) | E16: </entry> | F16: <entry id="75714" lang="en" sex="m">Disciple of Asmodeus Spellcasting (Fey)</entry> | H16: 16852930 | J16: 16852930
A17: <entry id=" | B17: 75715 | C17: " lang="en" sex="m"> | D17: Bladesinger Spellcasting (Fey) | E17: </entry> | F17: <entry id="75715" lang="en" sex="m">Bladesinger Spellcasting (Fey)</entry> | H17: 16852931 | J17: 16852931
A18: <entry id=" | B18: 75716 | C18: " lang="en" sex="m"> | D18: Blood Magus Spellcasting (Fey) | E18: </entry> | F18: <entry id="75716" lang="en" sex="m">Blood Magus Spellcasting (Fey)</entry> | H18: 16852932 | J18: 16852932
A19: <entry id=" | B19: 75717 | C19: " lang="en" sex="m"> | D19: Cerebremancer Spellcasting (Fey) | E19: </entry> | F19: <entry id="75717" lang="en" sex="m">Cerebremancer Spellcasting (Fey)</entry> | H19: 16852933 | J19: 16852933
A20: <entry id=" | B20: 75718 | C20: " lang="en" sex="m"> | D20: Diabolist Spellcasting (Fey) | E20: </entry> | F20: <entry id="75718" lang="en" sex="m">Diabolist Spellcasting (Fey)</entry> | H20: 16852934 | J20: 16852934
A21: <entry id=" | B21: 75719 | C21: " lang="en" sex="m"> | D21: Dragonheart Mage Spellcasting (Fey) | E21: </entry> | F21: <entry id="75719" lang="en" sex="m">Dragonheart Mage Spellcasting (Fey)</entry> | H21: 16852935 | J21: 16852935
A22: <entry id=" | B22: 75720 | C22: " lang="en" sex="m"> | D22: Dragonsong Lyrist Spellcasting (Fey) | E22: </entry> | F22: <entry id="75720" lang="en" sex="m">Dragonsong Lyrist Spellcasting (Fey)</entry> | H22: 16852936 | J22: 16852936
A23: <entry id=" | B23: 75721 | C23: " lang="en" sex="m"> | D23: Eldritch Knight Spellcasting (Fey) | E23: </entry> | F23: <entry id="75721" lang="en" sex="m">Eldritch Knight Spellcasting (Fey)</entry> | H23: 16852937 | J23: 16852937
A24: <entry id=" | B24: 75722 | C24: " lang="en" sex="m"> | D24: Enlightened Fist Spellcasting (Fey) | E24: </entry> | F24: <entry id="75722" lang="en" sex="m">Enlightened Fist Spellcasting (Fey)</entry> | H24: 16852938 | J24: 16852938
A25: <entry id=" | B25: 75723 | C25: " lang="en" sex="m"> | D25: Elemental Savant Spellcasting (Fey) | E25: </entry> | F25: <entry id="75723" lang="en" sex="m">Elemental Savant Spellcasting (Fey)</entry> | H25: 16852939 | J25: 16852939
A26: <entry id=" | B26: 75724 | C26: " lang="en" sex="m"> | D26: Eldritch Theurge Spellcasting (Fey) | E26: </entry> | F26: <entry id="75724" lang="en" sex="m">Eldritch Theurge Spellcasting (Fey)</entry> | H26: 16852940 | J26: 16852940
A27: <entry id=" | B27: 75725 | C27: " lang="en" sex="m"> | D27: Fochlucan Lyrist Spellcasting (Fey) | E27: </entry> | F27: <entry id="75725" lang="en" sex="m">Fochlucan Lyrist Spellcasting (Fey)</entry> | H27: 16852941 | J27: 16852941
A28: <entry id=" | B28: 75726 | C28: " lang="en" sex="m"> | D28: Frost Mage Spellcasting (Fey) | E28: </entry> | F28: <entry id="75726" lang="en" sex="m">Frost Mage Spellcasting (Fey)</entry> | H28: 16852942 | J28: 16852942
A29: <entry id=" | B29: 75727 | C29: " lang="en" sex="m"> | D29: Thrall of Graz'zt Spellcasting (Fey) | E29: </entry> | F29: <entry id="75727" lang="en" sex="m">Thrall of Graz'zt Spellcasting (Fey)</entry> | H29: 16852943 | J29: 16852943
A30: <entry id=" | B30: 75728 | C30: " lang="en" sex="m"> | D30: Harper Mage Spellcasting (Fey) | E30: </entry> | F30: <entry id="75728" lang="en" sex="m">Harper Mage Spellcasting (Fey)</entry> | H30: 16852944 | J30: 16852944
A31: <entry id=" | B31: 75729 | C31: " lang="en" sex="m"> | D31: Hathran Spellcasting (Fey) | E31: </entry> | F31: <entry id="75729" lang="en" sex="m">Hathran Spellcasting (Fey)</entry> | H31: 16852945 | J31: 16852945
A32: <entry id=" | B32: 75730 | C32: " lang="en" sex="m"> | D32: Havoc Mage Spellcasting (Fey) | E32: </entry> | F32: <entry id="75730" lang="en" sex="m">Havoc Mage Spellcasting (Fey)</entry> | H32: 16852946 | J32: 16852946
A33: <entry id=" | B33: 75731 | C33: " lang="en" sex="m"> | D33: Jade Phoenix Mage Spellcasting (Fey) | E33: </entry> | F33: <entry id="75731" lang="en" sex="m">Jade Phoenix Mage Spellcasting (Fey)</entry> | H33: 16852947 | J33: 16852947
A34: <entry id=" | B34: 75732 | C34: " lang="en" sex="m"> | D34: Drow Judicator Spellcasting (Fey) | E34: </entry> | F34: <entry id="75732" lang="en" sex="m">Drow Judicator Spellcasting (Fey)</entry> | H34: 16852948 | J34: 16852948
A35: <entry id=" | B35: 75733 | C35: " lang="en" sex="m"> | D35: Maester Spellcasting (Fey) | E35: </entry> | F35: <entry id="75733" lang="en" sex="m">Maester Spellcasting (Fey)</entry> | H35: 16852949 | J35: 16852949
A36: <entry id=" | B36: 75734 | C36: " lang="en" sex="m"> | D36: Mage Killer Spellcasting (Fey) | E36: </entry> | F36: <entry id="75734" lang="en" sex="m">Mage Killer Spellcasting (Fey)</entry> | H36: 16852950 | J36: 16852950
A37: <entry id=" | B37: 75735 | C37: " lang="en" sex="m"> | D37: Master Harper Spellcasting (Fey) | E37: </entry> | F37: <entry id="75735" lang="en" sex="m">Master Harper Spellcasting (Fey)</entry> | H37: 16852951 | J37: 16852951
A38: <entry id=" | B38: 75736 | C38: " lang="en" sex="m"> | D38: Mystic Theurge Spellcasting (Fey) | E38: </entry> | F38: <entry id="75736" lang="en" sex="m">Mystic Theurge Spellcasting (Fey)</entry> | H38: 16852952 | J38: 16852952
A39: <entry id=" | B39: 75737 | C39: " lang="en" sex="m"> | D39: Noctumancer Spellcasting (Fey) | E39: </entry> | F39: <entry id="75737" lang="en" sex="m">Noctumancer Spellcasting (Fey)</entry> | H39: 16852953 | J39: 16852953
A40: <entry id=" | B40: 75738 | C40: " lang="en" sex="m"> | D40: Oozemaster Spellcasting (Fey) | E40: </entry> | F40: <entry id="75738" lang="en" sex="m">Oozemaster Spellcasting (Fey)</entry> | H40: 16852954 | J40: 16852954
A41: <entry id=" | B41: 75739 | C41: " lang="en" sex="m"> | D41: Pale Master Spellcasting (Fey) | E41: </entry> | F41: <entry id="75739" lang="en" sex="m">Pale Master Spellcasting (Fey)</entry> | H41: 16852955 | J41: 16852955
A42: <entry id=" | B42: 75740 | C42: " lang="en" sex="m"> | D42: Rage Mage Spellcasting (Fey) | E42: </entry> | F42: <entry id="75740" lang="en" sex="m">Rage Mage Spellcasting (Fey)</entry> | H42: 16852956 | J42: 16852956
A43: <entry id=" | B43: 75741 | C43: " lang="en" sex="m"> | D43: Shadow Adept Spellcasting (Fey) | E43: </entry> | F43: <entry id="75741" lang="en" sex="m">Shadow Adept Spellcasting (Fey)</entry> | H43: 16852957 | J43: 16852957
A44: <entry id=" | B44: 75742 | C44: " lang="en" sex="m"> | D44: Soulcaster Spellcasting (Fey) | E44: </entry> | F44: <entry id="75742" lang="en" sex="m">Soulcaster Spellcasting (Fey)</entry> | H44: 16852958 | J44: 16852958
A45: <entry id=" | B45: 75743 | C45: " lang="en" sex="m"> | D45: Spelldancer Spellcasting (Fey) | E45: </entry> | F45: <entry id="75743" lang="en" sex="m">Spelldancer Spellcasting (Fey)</entry> | H45: 16852959 | J45: 16852959
A46: <entry id=" | B46: 75744 | C46: " lang="en" sex="m"> | D46: Spellsword Spellcasting (Fey) | E46: </entry> | F46: <entry id="75744" lang="en" sex="m">Spellsword Spellcasting (Fey)</entry> | H46: 16852960 | J46: 16852960
A47: <entry id=" | B47: 75745 | C47: " lang="en" sex="m"> | D47: Talon of Tiamat Spellcasting (Fey) | E47: </entry> | F47: <entry id="75745" lang="en" sex="m">Talon of Tiamat Spellcasting (Fey)</entry> | H47: 16852961 | J47: 16852961
A48: <entry id=" | B48: 75746 | C48: " lang="en" sex="m"> | D48: True Necromancer Spellcasting (Fey) | E48: </entry> | F48: <entry id="75746" lang="en" sex="m">True Necromancer Spellcasting (Fey)</entry> | H48: 16852962 | J48: 16852962
A49: <entry id=" | B49: 75747 | C49: " lang="en" sex="m"> | D49: Ultimate Magus Spellcasting (Fey) | E49: </entry> | F49: <entry id="75747" lang="en" sex="m">Ultimate Magus Spellcasting (Fey)</entry> | H49: 16852963 | J49: 16852963
A50: <entry id=" | B50: 75748 | C50: " lang="en" sex="m"> | D50: Unseen Spellcasting (Fey) | E50: </entry> | F50: <entry id="75748" lang="en" sex="m">Unseen Spellcasting (Fey)</entry> | H50: 16852964 | J50: 16852964
A51: <entry id=" | B51: 75749 | C51: " lang="en" sex="m"> | D51: Virtuoso Spellcasting (Fey) | E51: </entry> | F51: <entry id="75749" lang="en" sex="m">Virtuoso Spellcasting (Fey)</entry> | H51: 16852965 | J51: 16852965
A52: <entry id=" | B52: 75750 | C52: " lang="en" sex="m"> | D52: Wild Mage Spellcasting (Fey) | E52: </entry> | F52: <entry id="75750" lang="en" sex="m">Wild Mage Spellcasting (Fey)</entry> | H52: 16852966 | J52: 16852966
A53: <entry id=" | B53: 75751 | C53: " lang="en" sex="m"> | D53: War Wizard of Cormyr Spellcasting (Fey) | E53: </entry> | F53: <entry id="75751" lang="en" sex="m">War Wizard of Cormyr Spellcasting (Fey)</entry> | H53: 16852967 | J53: 16852967
A54: <entry id=" | B54: 75752 | C54: " lang="en" sex="m"> | D54: Abjurant Champion Spellcasting (Aberration) | E54: </entry> | F54: =CONCATENATE(A54,B54,C54,D54,E54) -> <entry id="75752" lang="en" sex="m">Abjurant Champion Spellcasting (Aberration)</entry> | H54: 16852968 | J54: 16852968
A55: <entry id=" | B55: 75753 | C55: " lang="en" sex="m"> | D55: Acolyte of the Skin Spellcasting (Aberration) | E55: </entry> | F55: <entry id="75753" lang="en" sex="m">Acolyte of the Skin Spellcasting (Aberration)</entry> | H55: 16852969 | J55: 16852969
A56: <entry id=" | B56: 75754 | C56: " lang="en" sex="m"> | D56: Master Alchemist Spellcasting (Aberration) | E56: </entry> | F56: <entry id="75754" lang="en" sex="m">Master Alchemist Spellcasting (Aberration)</entry> | H56: 16852970 | J56: 16852970
A57: <entry id=" | B57: 75755 | C57: " lang="en" sex="m"> | D57: Alienist Spellcasting (Aberration) | E57: </entry> | F57: <entry id="75755" lang="en" sex="m">Alienist Spellcasting (Aberration)</entry> | H57: 16852971 | J57: 16852971
A58: <entry id=" | B58: 75756 | C58: " lang="en" sex="m"> | D58: Anima Mage Spellcasting (Aberration) | E58: </entry> | F58: <entry id="75756" lang="en" sex="m">Anima Mage Spellcasting (Aberration)</entry> | H58: 16852972 | J58: 16852972
A59: <entry id=" | B59: 75757 | C59: " lang="en" sex="m"> | D59: Archmage Spellcasting (Aberration) | E59: </entry> | F59: <entry id="75757" lang="en" sex="m">Archmage Spellcasting (Aberration)</entry> | H59: 16852973 | J59: 16852973
A60: <entry id=" | B60: 75758 | C60: " lang="en" sex="m"> | D60: Arcane Trickster Spellcasting (Aberration) | E60: </entry> | F60: <entry id="75758" lang="en" sex="m">Arcane Trickster Spellcasting (Aberration)</entry> | H60: 16852974 | J60: 16852974
A61: <entry id=" | B61: 75759 | C61: " lang="en" sex="m"> | D61: Disciple of Asmodeus Spellcasting (Aberration) | E61: </entry> | F61: <entry id="75759" lang="en" sex="m">Disciple of Asmodeus Spellcasting (Aberration)</entry> | H61: 16852975 | J61: 16852975
A62: <entry id=" | B62: 75760 | C62: " lang="en" sex="m"> | D62: Bladesinger Spellcasting (Aberration) | E62: </entry> | F62: <entry id="75760" lang="en" sex="m">Bladesinger Spellcasting (Aberration)</entry> | H62: 16852976 | J62: 16852976
A63: <entry id=" | B63: 75761 | C63: " lang="en" sex="m"> | D63: Blood Magus Spellcasting (Aberration) | E63: </entry> | F63: <entry id="75761" lang="en" sex="m">Blood Magus Spellcasting (Aberration)</entry> | H63: 16852977 | J63: 16852977
A64: <entry id=" | B64: 75762 | C64: " lang="en" sex="m"> | D64: Cerebremancer Spellcasting (Aberration) | E64: </entry> | F64: <entry id="75762" lang="en" sex="m">Cerebremancer Spellcasting (Aberration)</entry> | H64: 16852978 | J64: 16852978
A65: <entry id=" | B65: 75763 | C65: " lang="en" sex="m"> | D65: Diabolist Spellcasting (Aberration) | E65: </entry> | F65: =CONCATENATE(A65,B65,C65,D65,E65) -> <entry id="75763" lang="en" sex="m">Diabolist Spellcasting (Aberration)</entry> | H65: 16852979 | J65: 16852979
A66: <entry id=" | B66: 75764 | C66: " lang="en" sex="m"> | D66: Dragonheart Mage Spellcasting (Aberration) | E66: </entry> | F66: =CONCATENATE(A66,B66,C66,D66,E66) -> <entry id="75764" lang="en" sex="m">Dragonheart Mage Spellcasting (Aberration)</entry> | H66: 16852980 | J66: 16852980
A67: <entry id=" | B67: 75765 | C67: " lang="en" sex="m"> | D67: Dragonsong Lyrist Spellcasting (Aberration) | E67: </entry> | F67: <entry id="75765" lang="en" sex="m">Dragonsong Lyrist Spellcasting (Aberration)</entry> | H67: =SUM(B67+16777216) -> 16852981 | J67: 16852981
A68: <entry id=" | B68: =SUM(B67+1) -> 75766 | C68: " lang="en" sex="m"> | D68: Eldritch Knight Spellcasting (Aberration) | E68: </entry> | F68: <entry id="75766" lang="en" sex="m">Eldritch Knight Spellcasting (Aberration)</entry> | H68: 16852982 | J68: 16852982
A69: <entry id=" | B69: 75767 | C69: " lang="en" sex="m"> | D69: Enlightened Fist Spellcasting (Aberration) | E69: </entry> | F69: <entry id="75767" lang="en" sex="m">Enlightened Fist Spellcasting (Aberration)</entry> | H69: 16852983 | J69: 16852983
A70: <entry id=" | B70: 75768 | C70: " lang="en" sex="m"> | D70: Elemental Savant Spellcasting (Aberration) | E70: </entry> | F70: <entry id="75768" lang="en" sex="m">Elemental Savant Spellcasting (Aberration)</entry> | H70: 16852984 | J70: 16852984
A71: <entry id=" | B71: 75769 | C71: " lang="en" sex="m"> | D71: Eldritch Theurge Spellcasting (Aberration) | E71: </entry> | F71: <entry id="75769" lang="en" sex="m">Eldritch Theurge Spellcasting (Aberration)</entry> | H71: 16852985 | J71: 16852985
A72: <entry id=" | B72: 75770 | C72: " lang="en" sex="m"> | D72: Force Missile Mage Spellcasting (Aberration) | E72: </entry> | F72: <entry id="75770" lang="en" sex="m">Force Missile Mage Spellcasting (Aberration)</entry> | H72: 16852986 | J72: 16852986
A73: <entry id=" | B73: 75771 | C73: " lang="en" sex="m"> | D73: Fochulan Lyrist Spellcasting (Aberration) | E73: </entry> | F73: <entry id="75771" lang="en" sex="m">Fochulan Lyrist Spellcasting (Aberration)</entry> | H73: 16852987 | J73: 16852987
A74: <entry id=" | B74: 75772 | C74: " lang="en" sex="m"> | D74: Frost Mage Spellcasting (Aberration) | E74: </entry> | F74: <entry id="75772" lang="en" sex="m">Frost Mage Spellcasting (Aberration)</entry> | H74: 16852988 | J74: 16852988
A75: <entry id=" | B75: 75773 | C75: " lang="en" sex="m"> | D75: Thrall of Graz'zt Spellcasting (Aberration) | E75: </entry> | F75: <entry id="75773" lang="en" sex="m">Thrall of Graz'zt Spellcasting (Aberration)</entry> | H75: 16852989 | J75: 16852989
A76: <entry id=" | B76: 75774 | C76: " lang="en" sex="m"> | D76: Harper Mage Spellcasting (Aberration) | E76: </entry> | F76: <entry id="75774" lang="en" sex="m">Harper Mage Spellcasting (Aberration)</entry> | H76: 16852990 | J76: 16852990
A77: <entry id=" | B77: 75775 | C77: " lang="en" sex="m"> | D77: Hathran Spellcasting (Aberration) | E77: </entry> | F77: <entry id="75775" lang="en" sex="m">Hathran Spellcasting (Aberration)</entry> | H77: 16852991 | J77: 16852991
A78: <entry id=" | B78: 75776 | C78: " lang="en" sex="m"> | D78: Havoc Mage Spellcasting (Aberration) | E78: </entry> | F78: <entry id="75776" lang="en" sex="m">Havoc Mage Spellcasting (Aberration)</entry> | H78: 16852992 | J78: 16852992
A79: <entry id=" | B79: 75777 | C79: " lang="en" sex="m"> | D79: Jade Phoenix Mage Spellcasting (Aberration) | E79: </entry> | F79: <entry id="75777" lang="en" sex="m">Jade Phoenix Mage Spellcasting (Aberration)</entry> | H79: 16852993 | J79: 16852993
A80: <entry id=" | B80: 75778 | C80: " lang="en" sex="m"> | D80: Drow Judicator Spellcasting (Aberration) | E80: </entry> | F80: <entry id="75778" lang="en" sex="m">Drow Judicator Spellcasting (Aberration)</entry> | H80: 16852994 | J80: 16852994
A81: <entry id=" | B81: 75779 | C81: " lang="en" sex="m"> | D81: Maester Spellcasting (Aberration) | E81: </entry> | F81: <entry id="75779" lang="en" sex="m">Maester Spellcasting (Aberration)</entry> | H81: 16852995 | J81: 16852995
A82: <entry id=" | B82: 75780 | C82: " lang="en" sex="m"> | D82: Mage Killer Spellcasting (Aberration) | E82: </entry> | F82: <entry id="75780" lang="en" sex="m">Mage Killer Spellcasting (Aberration)</entry> | H82: 16852996 | J82: 16852996
A83: <entry id=" | B83: 75781 | C83: " lang="en" sex="m"> | D83: Master Harper Spellcasting (Aberration) | E83: </entry> | F83: <entry id="75781" lang="en" sex="m">Master Harper Spellcasting (Aberration)</entry> | H83: 16852997 | J83: 16852997
A84: <entry id=" | B84: 75782 | C84: " lang="en" sex="m"> | D84: Mystic Theurge Spellcasting (Aberration) | E84: </entry> | F84: <entry id="75782" lang="en" sex="m">Mystic Theurge Spellcasting (Aberration)</entry> | H84: 16852998 | J84: 16852998
A85: <entry id=" | B85: 75783 | C85: " lang="en" sex="m"> | D85: Noctumancer Spellcasting (Aberration) | E85: </entry> | F85: <entry id="75783" lang="en" sex="m">Noctumancer Spellcasting (Aberration)</entry> | H85: 16852999 | J85: 16852999
A86: <entry id=" | B86: 75784 | C86: " lang="en" sex="m"> | D86: Oozemaster Spellcasting (Aberration) | E86: </entry> | F86: <entry id="75784" lang="en" sex="m">Oozemaster Spellcasting (Aberration)</entry> | H86: 16853000 | J86: 16853000
A87: <entry id=" | B87: 75785 | C87: " lang="en" sex="m"> | D87: Pale Master Spellcasting (Aberration) | E87: </entry> | F87: <entry id="75785" lang="en" sex="m">Pale Master Spellcasting (Aberration)</entry> | H87: 16853001 | J87: 16853001
A88: <entry id=" | B88: 75786 | C88: " lang="en" sex="m"> | D88: Rage Mage Spellcasting (Aberration) | E88: </entry> | F88: <entry id="75786" lang="en" sex="m">Rage Mage Spellcasting (Aberration)</entry> | H88: 16853002 | J88: 16853002
A89: <entry id=" | B89: 75787 | C89: " lang="en" sex="m"> | D89: Shadow Adept Spellcasting (Aberration) | E89: </entry> | F89: <entry id="75787" lang="en" sex="m">Shadow Adept Spellcasting (Aberration)</entry> | H89: 16853003 | J89: 16853003
A90: <entry id=" | B90: 75788 | C90: " lang="en" sex="m"> | D90: Soulcaster Spellcasting (Aberration) | E90: </entry> | F90: <entry id="75788" lang="en" sex="m">Soulcaster Spellcasting (Aberration)</entry> | H90: 16853004 | J90: 16853004
A91: <entry id=" | B91: 75789 | C91: " lang="en" sex="m"> | D91: Spelldancer Spellcasting (Aberration) | E91: </entry> | F91: <entry id="75789" lang="en" sex="m">Spelldancer Spellcasting (Aberration)</entry> | H91: 16853005 | J91: 16853005
A92: <entry id=" | B92: 75790 | C92: " lang="en" sex="m"> | D92: Spellsword Spellcasting (Aberration) | E92: </entry> | F92: <entry id="75790" lang="en" sex="m">Spellsword Spellcasting (Aberration)</entry> | H92: 16853006 | J92: 16853006
A93: <entry id=" | B93: 75791 | C93: " lang="en" sex="m"> | D93: Talon of Tiamat Spellcasting (Aberration) | E93: </entry> | F93: <entry id="75791" lang="en" sex="m">Talon of Tiamat Spellcasting (Aberration)</entry> | H93: 16853007 | J93: 16853007
A94: <entry id=" | B94: 75792 | C94: " lang="en" sex="m"> | D94: True Necromancer Spellcasting (Aberration) | E94: </entry> | F94: <entry id="75792" lang="en" sex="m">True Necromancer Spellcasting (Aberration)</entry> | H94: 16853008 | J94: 16853008
A95: <entry id=" | B95: 75793 | C95: " lang="en" sex="m"> | D95: Ultimate Magus Spellcasting (Aberration) | E95: </entry> | F95: <entry id="75793" lang="en" sex="m">Ultimate Magus Spellcasting (Aberration)</entry> | H95: 16853009 | J95: 16853009
A96: <entry id=" | B96: 75794 | C96: " lang="en" sex="m"> | D96: Unseen Seer Spellcasting (Aberration) | E96: </entry> | F96: <entry id="75794" lang="en" sex="m">Unseen Seer Spellcasting (Aberration)</entry> | H96: 16853010 | J96: 16853010
A97: <entry id=" | B97: 75795 | C97: " lang="en" sex="m"> | D97: Virtuoso Spellcasting (Aberration) | E97: </entry> | F97: <entry id="75795" lang="en" sex="m">Virtuoso Spellcasting (Aberration)</entry> | H97: 16853011 | J97: 16853011
A98: <entry id=" | B98: 75796 | C98: " lang="en" sex="m"> | D98: Wayfarer Guide Spellcasting (Aberration) | E98: </entry> | F98: <entry id="75796" lang="en" sex="m">Wayfarer Guide Spellcasting (Aberration)</entry> | H98: 16853012 | J98: 16853012
A99: <entry id=" | B99: 75797 | C99: " lang="en" sex="m"> | D99: Wild Mage Spellcasting (Aberration) | E99: </entry> | F99: <entry id="75797" lang="en" sex="m">Wild Mage Spellcasting (Aberration)</entry> | H99: 16853013 | J99: 16853013
A100: <entry id=" | B100: 75798 | C100: " lang="en" sex="m"> | D100: War Wizard of Cormyr Spellcasting (Aberration) | E100: </entry> | F100: <entry id="75798" lang="en" sex="m">War Wizard of Cormyr Spellcasting (Aberration)</entry> | H100: 16853014 | J100: 16853014
A101: <entry id=" | B101: 75799 | C101: " lang="en" sex="m"> | D101: Abjurant Champion Spellcasting (Monstrous Humaniod) | E101: </entry> | F101: =CONCATENATE(A101,B101,C101,D101,E101) -> <entry id="75799" lang="en" sex="m">Abjurant Champion Spellcasting (Monstrous Humaniod)</entry> | H101: 16853015 | J101: 16853015
A102: <entry id=" | B102: 75800 | C102: " lang="en" sex="m"> | D102: Acolyte of the Skin Spellcasting (Monstrous Humaniod) | E102: </entry> | F102: <entry id="75800" lang="en" sex="m">Acolyte of the Skin Spellcasting (Monstrous Humaniod)</entry> | H102: 16853016 | J102: 16853016
A103: <entry id=" | B103: 75801 | C103: " lang="en" sex="m"> | D103: Master Alchemist Spellcasting (Monstrous Humaniod) | E103: </entry> | F103: <entry id="75801" lang="en" sex="m">Master Alchemist Spellcasting (Monstrous Humaniod)</entry> | H103: 16853017 | J103: 16853017
A104: <entry id=" | B104: 75802 | C104: " lang="en" sex="m"> | D104: Alienist Spellcasting (Monstrous Humaniod) | E104: </entry> | F104: <entry id="75802" lang="en" sex="m">Alienist Spellcasting (Monstrous Humaniod)</entry> | H104: 16853018 | J104: 16853018
A105: <entry id=" | B105: 75803 | C105: " lang="en" sex="m"> | D105: Anima Mage Spellcasting (Monstrous Humaniod) | E105: </entry> | F105: <entry id="75803" lang="en" sex="m">Anima Mage Spellcasting (Monstrous Humaniod)</entry> | H105: 16853019 | J105: 16853019
A106: <entry id=" | B106: 75804 | C106: " lang="en" sex="m"> | D106: Archmage Spellcasting (Monstrous Humaniod) | E106: </entry> | F106: <entry id="75804" lang="en" sex="m">Archmage Spellcasting (Monstrous Humaniod)</entry> | H106: 16853020 | J106: 16853020
A107: <entry id=" | B107: 75805 | C107: " lang="en" sex="m"> | D107: Arcane Trickster Spellcasting (Monstrous Humaniod) | E107: </entry> | F107: <entry id="75805" lang="en" sex="m">Arcane Trickster Spellcasting (Monstrous Humaniod)</entry> | H107: 16853021 | J107: 16853021
A108: <entry id=" | B108: 75806 | C108: " lang="en" sex="m"> | D108: Disciple of Asmodeus Spellcasting (Monstrous Humaniod) | E108: </entry> | F108: <entry id="75806" lang="en" sex="m">Disciple of Asmodeus Spellcasting (Monstrous Humaniod)</entry> | H108: 16853022 | J108: 16853022
A109: <entry id=" | B109: 75807 | C109: " lang="en" sex="m"> | D109: Bladesinger Spellcasting (Monstrous Humaniod) | E109: </entry> | F109: <entry id="75807" lang="en" sex="m">Bladesinger Spellcasting (Monstrous Humaniod)</entry> | H109: 16853023 | J109: 16853023
A110: <entry id=" | B110: 75808 | C110: " lang="en" sex="m"> | D110: Blood Magus Spellcasting (Monstrous Humaniod) | E110: </entry> | F110: <entry id="75808" lang="en" sex="m">Blood Magus Spellcasting (Monstrous Humaniod)</entry> | H110: 16853024 | J110: 16853024
A111: <entry id=" | B111: 75809 | C111: " lang="en" sex="m"> | D111: Cerebremancer Spellcasting (Monstrous Humaniod) | E111: </entry> | F111: <entry id="75809" lang="en" sex="m">Cerebremancer Spellcasting (Monstrous Humaniod)</entry> | H111: 16853025 | J111: 16853025
A112: <entry id=" | B112: 75810 | C112: " lang="en" sex="m"> | D112: Diabolist Spellcasting (Monstrous Humaniod) | E112: </entry> | F112: =CONCATENATE(A112,B112,C112,D112,E112) -> <entry id="75810" lang="en" sex="m">Diabolist Spellcasting (Monstrous Humaniod)</entry> | H112: 16853026 | J112: 16853026
A113: <entry id=" | B113: 75811 | C113: " lang="en" sex="m"> | D113: Dragonheart Mage Spellcasting (Monstrous Humaniod) | E113: </entry> | F113: =CONCATENATE(A113,B113,C113,D113,E113) -> <entry id="75811" lang="en" sex="m">Dragonheart Mage Spellcasting (Monstrous Humaniod)</entry> | H113: 16853027 | J113: 16853027
A114: <entry id=" | B114: 75812 | C114: " lang="en" sex="m"> | D114: Dragonsong Lyrist Spellcasting (Monstrous Humaniod) | E114: </entry> | F114: <entry id="75812" lang="en" sex="m">Dragonsong Lyrist Spellcasting (Monstrous Humaniod)</entry> | H114: 16853028 | J114: 16853028
A115: <entry id=" | B115: 75813 | C115: " lang="en" sex="m"> | D115: Eldritch Knight Spellcasting (Monstrous Humaniod) | E115: </entry> | F115: <entry id="75813" lang="en" sex="m">Eldritch Knight Spellcasting (Monstrous Humaniod)</entry> | H115: 16853029 | J115: 16853029
A116: <entry id=" | B116: 75814 | C116: " lang="en" sex="m"> | D116: Enlightened Fist Spellcasting (Monstrous Humaniod) | E116: </entry> | F116: <entry id="75814" lang="en" sex="m">Enlightened Fist Spellcasting (Monstrous Humaniod)</entry> | H116: 16853030 | J116: 16853030
A117: <entry id=" | B117: 75815 | C117: " lang="en" sex="m"> | D117: Elemental Savant Spellcasting (Monstrous Humaniod) | E117: </entry> | F117: <entry id="75815" lang="en" sex="m">Elemental Savant Spellcasting (Monstrous Humaniod)</entry> | H117: 16853031 | J117: 16853031
A118: <entry id=" | B118: 75816 | C118: " lang="en" sex="m"> | D118: Eldritch Theurge Spellcasting (Monstrous Humaniod) | E118: </entry> | F118: <entry id="75816" lang="en" sex="m">Eldritch Theurge Spellcasting (Monstrous Humaniod)</entry> | H118: 16853032 | J118: 16853032
A119: <entry id=" | B119: 75817 | C119: " lang="en" sex="m"> | D119: Force Missile Mage Spellcasting (Monstrous Humaniod) | E119: </entry> | F119: <entry id="75817" lang="en" sex="m">Force Missile Mage Spellcasting (Monstrous Humaniod)</entry> | H119: 16853033 | J119: 16853033
A120: <entry id=" | B120: 75818 | C120: " lang="en" sex="m"> | D120: Fochulan Lyrist Spellcasting (Monstrous Humaniod) | E120: </entry> | F120: <entry id="75818" lang="en" sex="m">Fochulan Lyrist Spellcasting (Monstrous Humaniod)</entry> | H120: 16853034 | J120: 16853034
A121: <entry id=" | B121: 75819 | C121: " lang="en" sex="m"> | D121: Frost Mage Spellcasting (Monstrous Humaniod) | E121: </entry> | F121: <entry id="75819" lang="en" sex="m">Frost Mage Spellcasting (Monstrous Humaniod)</entry> | H121: 16853035 | J121: 16853035
A122: <entry id=" | B122: 75820 | C122: " lang="en" sex="m"> | D122: Thrall of Graz'zt Spellcasting (Monstrous Humaniod) | E122: </entry> | F122: <entry id="75820" lang="en" sex="m">Thrall of Graz'zt Spellcasting (Monstrous Humaniod)</entry> | H122: 16853036 | J122: 16853036
A123: <entry id=" | B123: 75821 | C123: " lang="en" sex="m"> | D123: Harper Mage Spellcasting (Monstrous Humaniod) | E123: </entry> | F123: <entry id="75821" lang="en" sex="m">Harper Mage Spellcasting (Monstrous Humaniod)</entry> | H123: 16853037 | J123: 16853037
A124: <entry id=" | B124: 75822 | C124: " lang="en" sex="m"> | D124: Hathran Spellcasting (Monstrous Humaniod) | E124: </entry> | F124: <entry id="75822" lang="en" sex="m">Hathran Spellcasting (Monstrous Humaniod)</entry> | H124: 16853038 | J124: 16853038
A125: <entry id=" | B125: 75823 | C125: " lang="en" sex="m"> | D125: Havoc Mage Spellcasting (Monstrous Humaniod) | E125: </entry> | F125: <entry id="75823" lang="en" sex="m">Havoc Mage Spellcasting (Monstrous Humaniod)</entry> | H125: 16853039 | J125: 16853039
A126: <entry id=" | B126: 75824 | C126: " lang="en" sex="m"> | D126: Jade Phoenix Mage Spellcasting (Monstrous Humaniod) | E126: </entry> | F126: <entry id="75824" lang="en" sex="m">Jade Phoenix Mage Spellcasting (Monstrous Humaniod)</entry> | H126: 16853040 | J126: 16853040
A127: <entry id=" | B127: 75825 | C127: " lang="en" sex="m"> | D127: Drow Judicator Spellcasting (Monstrous Humaniod) | E127: </entry> | F127: <entry id="75825" lang="en" sex="m">Drow Judicator Spellcasting (Monstrous Humaniod)</entry> | H127: 16853041 | J127: 16853041
A128: <entry id=" | B128: 75826 | C128: " lang="en" sex="m"> | D128: Maester Spellcasting (Monstrous Humaniod) | E128: </entry> | F128: <entry id="75826" lang="en" sex="m">Maester Spellcasting (Monstrous Humaniod)</entry> | H128: 16853042 | J128: 16853042
A129: <entry id=" | B129: 75827 | C129: " lang="en" sex="m"> | D129: Mage Killer Spellcasting (Monstrous Humaniod) | E129: </entry> | F129: <entry id="75827" lang="en" sex="m">Mage Killer Spellcasting (Monstrous Humaniod)</entry> | H129: 16853043 | J129: 16853043
A130: <entry id=" | B130: 75828 | C130: " lang="en" sex="m"> | D130: Master Harper Spellcasting (Monstrous Humaniod) | E130: </entry> | F130: <entry id="75828" lang="en" sex="m">Master Harper Spellcasting (Monstrous Humaniod)</entry> | H130: 16853044 | J130: 16853044
A131: <entry id=" | B131: 75829 | C131: " lang="en" sex="m"> | D131: Mystic Theurge Spellcasting (Monstrous Humaniod) | E131: </entry> | F131: <entry id="75829" lang="en" sex="m">Mystic Theurge Spellcasting (Monstrous Humaniod)</entry> | H131: =SUM(B131+16777216) -> 16853045 | J131: 16853045
A132: <entry id=" | B132: =SUM(B131+1) -> 75830 | C132: " lang="en" sex="m"> | D132: Noctumancer Spellcasting (Monstrous Humaniod) | E132: </entry> | F132: <entry id="75830" lang="en" sex="m">Noctumancer Spellcasting (Monstrous Humaniod)</entry> | H132: 16853046 | J132: 16853046
A133: <entry id=" | B133: 75831 | C133: " lang="en" sex="m"> | D133: Oozemaster Spellcasting (Monstrous Humaniod) | E133: </entry> | F133: <entry id="75831" lang="en" sex="m">Oozemaster Spellcasting (Monstrous Humaniod)</entry> | H133: 16853047 | J133: 16853047
A134: <entry id=" | B134: 75832 | C134: " lang="en" sex="m"> | D134: Pale Master Spellcasting (Monstrous Humaniod) | E134: </entry> | F134: <entry id="75832" lang="en" sex="m">Pale Master Spellcasting (Monstrous Humaniod)</entry> | H134: 16853048 | J134: 16853048
A135: <entry id=" | B135: 75833 | C135: " lang="en" sex="m"> | D135: Rage Mage Spellcasting (Monstrous Humaniod) | E135: </entry> | F135: <entry id="75833" lang="en" sex="m">Rage Mage Spellcasting (Monstrous Humaniod)</entry> | H135: 16853049 | J135: 16853049
A136: <entry id=" | B136: 75834 | C136: " lang="en" sex="m"> | D136: Shadow Adept Spellcasting (Monstrous Humaniod) | E136: </entry> | F136: <entry id="75834" lang="en" sex="m">Shadow Adept Spellcasting (Monstrous Humaniod)</entry> | H136: 16853050 | J136: 16853050
A137: <entry id=" | B137: 75835 | C137: " lang="en" sex="m"> | D137: Soulcaster Spellcasting (Monstrous Humaniod) | E137: </entry> | F137: <entry id="75835" lang="en" sex="m">Soulcaster Spellcasting (Monstrous Humaniod)</entry> | H137: 16853051 | J137: 16853051
A138: <entry id=" | B138: 75836 | C138: " lang="en" sex="m"> | D138: Spelldancer Spellcasting (Monstrous Humaniod) | E138: </entry> | F138: <entry id="75836" lang="en" sex="m">Spelldancer Spellcasting (Monstrous Humaniod)</entry> | H138: 16853052 | J138: 16853052
A139: <entry id=" | B139: 75837 | C139: " lang="en" sex="m"> | D139: Spellsword Spellcasting (Monstrous Humaniod) | E139: </entry> | F139: <entry id="75837" lang="en" sex="m">Spellsword Spellcasting (Monstrous Humaniod)</entry> | H139: 16853053 | J139: 16853053
A140: <entry id=" | B140: 75838 | C140: " lang="en" sex="m"> | D140: Talon of Tiamat Spellcasting (Monstrous Humaniod) | E140: </entry> | F140: <entry id="75838" lang="en" sex="m">Talon of Tiamat Spellcasting (Monstrous Humaniod)</entry> | H140: 16853054 | J140: 16853054
A141: <entry id=" | B141: 75839 | C141: " lang="en" sex="m"> | D141: True Necromancer Spellcasting (Monstrous Humaniod) | E141: </entry> | F141: <entry id="75839" lang="en" sex="m">True Necromancer Spellcasting (Monstrous Humaniod)</entry> | H141: 16853055 | J141: 16853055
A142: <entry id=" | B142: 75840 | C142: " lang="en" sex="m"> | D142: Ultimate Magus Spellcasting (Monstrous Humaniod) | E142: </entry> | F142: <entry id="75840" lang="en" sex="m">Ultimate Magus Spellcasting (Monstrous Humaniod)</entry> | H142: 16853056 | J142: 16853056
A143: <entry id=" | B143: 75841 | C143: " lang="en" sex="m"> | D143: Unseen Seer Spellcasting (Monstrous Humaniod) | E143: </entry> | F143: <entry id="75841" lang="en" sex="m">Unseen Seer Spellcasting (Monstrous Humaniod)</entry> | H143: 16853057 | J143: 16853057
A144: <entry id=" | B144: 75842 | C144: " lang="en" sex="m"> | D144: Virtuoso Spellcasting (Monstrous Humaniod) | E144: </entry> | F144: <entry id="75842" lang="en" sex="m">Virtuoso Spellcasting (Monstrous Humaniod)</entry> | H144: 16853058 | J144: 16853058
A145: <entry id=" | B145: 75843 | C145: " lang="en" sex="m"> | D145: Wayfarer Guide Spellcasting (Monstrous Humaniod) | E145: </entry> | F145: <entry id="75843" lang="en" sex="m">Wayfarer Guide Spellcasting (Monstrous Humaniod)</entry> | H145: 16853059 | J145: 16853059
A146: <entry id=" | B146: 75844 | C146: " lang="en" sex="m"> | D146: Wild Mage Spellcasting (Monstrous Humaniod) | E146: </entry> | F146: <entry id="75844" lang="en" sex="m">Wild Mage Spellcasting (Monstrous Humaniod)</entry> | H146: 16853060 | J146: 16853060
A147: <entry id=" | B147: 75845 | C147: " lang="en" sex="m"> | D147: War Wizard of Cormyr Spellcasting (Monstrous Humaniod) | E147: </entry> | F147: <entry id="75845" lang="en" sex="m">War Wizard of Cormyr Spellcasting (Monstrous Humaniod)</entry> | H147: 16853061 | J147: 16853061
A148: <entry id=" | B148: 75846 | C148: " lang="en" sex="m"> | D148: Abjurant Champion Spellcasting (Outsider) | E148: </entry> | F148: =CONCATENATE(A148,B148,C148,D148,E148) -> <entry id="75846" lang="en" sex="m">Abjurant Champion Spellcasting (Outsider)</entry> | H148: 16853062 | J148: 16853062
A149: <entry id=" | B149: 75847 | C149: " lang="en" sex="m"> | D149: Acolyte of the Skin Spellcasting (Outsider) | E149: </entry> | F149: <entry id="75847" lang="en" sex="m">Acolyte of the Skin Spellcasting (Outsider)</entry> | H149: 16853063 | J149: 16853063
A150: <entry id=" | B150: 75848 | C150: " lang="en" sex="m"> | D150: Master Alchemist Spellcasting (Outsider) | E150: </entry> | F150: <entry id="75848" lang="en" sex="m">Master Alchemist Spellcasting (Outsider)</entry> | H150: 16853064 | J150: 16853064
A151: <entry id=" | B151: 75849 | C151: " lang="en" sex="m"> | D151: Alienist Spellcasting (Outsider) | E151: </entry> | F151: <entry id="75849" lang="en" sex="m">Alienist Spellcasting (Outsider)</entry> | H151: 16853065 | J151: 16853065
A152: <entry id=" | B152: 75850 | C152: " lang="en" sex="m"> | D152: Anima Mage Spellcasting (Outsider) | E152: </entry> | F152: <entry id="75850" lang="en" sex="m">Anima Mage Spellcasting (Outsider)</entry> | H152: 16853066 | J152: 16853066
A153: <entry id=" | B153: 75851 | C153: " lang="en" sex="m"> | D153: Archmage Spellcasting (Outsider) | E153: </entry> | F153: <entry id="75851" lang="en" sex="m">Archmage Spellcasting (Outsider)</entry> | H153: 16853067 | J153: 16853067
A154: <entry id=" | B154: 75852 | C154: " lang="en" sex="m"> | D154: Arcane Trickster Spellcasting (Outsider) | E154: </entry> | F154: <entry id="75852" lang="en" sex="m">Arcane Trickster Spellcasting (Outsider)</entry> | H154: 16853068 | J154: 16853068
A155: <entry id=" | B155: 75853 | C155: " lang="en" sex="m"> | D155: Disciple of Asmodeus Spellcasting (Outsider) | E155: </entry> | F155: <entry id="75853" lang="en" sex="m">Disciple of Asmodeus Spellcasting (Outsider)</entry> | H155: 16853069 | J155: 16853069
A156: <entry id=" | B156: 75854 | C156: " lang="en" sex="m"> | D156: Bladesinger Spellcasting (Outsider) | E156: </entry> | F156: <entry id="75854" lang="en" sex="m">Bladesinger Spellcasting (Outsider)</entry> | H156: 16853070 | J156: 16853070
A157: <entry id=" | B157: 75855 | C157: " lang="en" sex="m"> | D157: Blood Magus Spellcasting (Outsider) | E157: </entry> | F157: <entry id="75855" lang="en" sex="m">Blood Magus Spellcasting (Outsider)</entry> | H157: 16853071 | J157: 16853071
A158: <entry id=" | B158: 75856 | C158: " lang="en" sex="m"> | D158: Cerebremancer Spellcasting (Outsider) | E158: </entry> | F158: <entry id="75856" lang="en" sex="m">Cerebremancer Spellcasting (Outsider)</entry> | H158: 16853072 | J158: 16853072
A159: <entry id=" | B159: 75857 | C159: " lang="en" sex="m"> | D159: Diabolist Spellcasting (Outsider) | E159: </entry> | F159: =CONCATENATE(A159,B159,C159,D159,E159) -> <entry id="75857" lang="en" sex="m">Diabolist Spellcasting (Outsider)</entry> | H159: 16853073 | J159: 16853073
A160: <entry id=" | B160: 75858 | C160: " lang="en" sex="m"> | D160: Dragonheart Mage Spellcasting (Outsider) | E160: </entry> | F160: =CONCATENATE(A160,B160,C160,D160,E160) -> <entry id="75858" lang="en" sex="m">Dragonheart Mage Spellcasting (Outsider)</entry> | H160: 16853074 | J160: 16853074
A161: <entry id=" | B161: 75859 | C161: " lang="en" sex="m"> | D161: Dragonsong Lyrist Spellcasting (Outsider) | E161: </entry> | F161: <entry id="75859" lang="en" sex="m">Dragonsong Lyrist Spellcasting (Outsider)</entry> | H161: 16853075 | J161: 16853075
A162: <entry id=" | B162: 75860 | C162: " lang="en" sex="m"> | D162: Eldritch Knight Spellcasting (Outsider) | E162: </entry> | F162: <entry id="75860" lang="en" sex="m">Eldritch Knight Spellcasting (Outsider)</entry> | H162: 16853076 | J162: 16853076
A163: <entry id=" | B163: 75861 | C163: " lang="en" sex="m"> | D163: Enlightened Fist Spellcasting (Outsider) | E163: </entry> | F163: <entry id="75861" lang="en" sex="m">Enlightened Fist Spellcasting (Outsider)</entry> | H163: 16853077 | J163: 16853077
A164: <entry id=" | B164: 75862 | C164: " lang="en" sex="m"> | D164: Elemental Savant Spellcasting (Outsider) | E164: </entry> | F164: <entry id="75862" lang="en" sex="m">Elemental Savant Spellcasting (Outsider)</entry> | H164: 16853078 | J164: 16853078
A165: <entry id=" | B165: 75863 | C165: " lang="en" sex="m"> | D165: Eldritch Theurge Spellcasting (Outsider) | E165: </entry> | F165: <entry id="75863" lang="en" sex="m">Eldritch Theurge Spellcasting (Outsider)</entry> | H165: 16853079 | J165: 16853079
A166: <entry id=" | B166: 75864 | C166: " lang="en" sex="m"> | D166: Force Missile Mage Spellcasting (Outsider) | E166: </entry> | F166: <entry id="75864" lang="en" sex="m">Force Missile Mage Spellcasting (Outsider)</entry> | H166: 16853080 | J166: 16853080
A167: <entry id=" | B167: 75865 | C167: " lang="en" sex="m"> | D167: Fochulan Lyrist Spellcasting (Outsider) | E167: </entry> | F167: <entry id="75865" lang="en" sex="m">Fochulan Lyrist Spellcasting (Outsider)</entry> | H167: 16853081 | J167: 16853081
A168: <entry id=" | B168: 75866 | C168: " lang="en" sex="m"> | D168: Frost Mage Spellcasting (Outsider) | E168: </entry> | F168: <entry id="75866" lang="en" sex="m">Frost Mage Spellcasting (Outsider)</entry> | H168: 16853082 | J168: 16853082
A169: <entry id=" | B169: 75867 | C169: " lang="en" sex="m"> | D169: Thrall of Graz'zt Spellcasting (Outsider) | E169: </entry> | F169: <entry id="75867" lang="en" sex="m">Thrall of Graz'zt Spellcasting (Outsider)</entry> | H169: 16853083 | J169: 16853083
A170: <entry id=" | B170: 75868 | C170: " lang="en" sex="m"> | D170: Harper Mage Spellcasting (Outsider) | E170: </entry> | F170: <entry id="75868" lang="en" sex="m">Harper Mage Spellcasting (Outsider)</entry> | H170: 16853084 | J170: 16853084
A171: <entry id=" | B171: 75869 | C171: " lang="en" sex="m"> | D171: Hathran Spellcasting (Outsider) | E171: </entry> | F171: <entry id="75869" lang="en" sex="m">Hathran Spellcasting (Outsider)</entry> | H171: 16853085 | J171: 16853085
A172: <entry id=" | B172: 75870 | C172: " lang="en" sex="m"> | D172: Havoc Mage Spellcasting (Outsider) | E172: </entry> | F172: <entry id="75870" lang="en" sex="m">Havoc Mage Spellcasting (Outsider)</entry> | H172: 16853086 | J172: 16853086
A173: <entry id=" | B173: 75871 | C173: " lang="en" sex="m"> | D173: Jade Phoenix Mage Spellcasting (Outsider) | E173: </entry> | F173: <entry id="75871" lang="en" sex="m">Jade Phoenix Mage Spellcasting (Outsider)</entry> | H173: 16853087 | J173: 16853087
A174: <entry id=" | B174: 75872 | C174: " lang="en" sex="m"> | D174: Drow Judicator Spellcasting (Outsider) | E174: </entry> | F174: <entry id="75872" lang="en" sex="m">Drow Judicator Spellcasting (Outsider)</entry> | H174: 16853088 | J174: 16853088
A175: <entry id=" | B175: 75873 | C175: " lang="en" sex="m"> | D175: Maester Spellcasting (Outsider) | E175: </entry> | F175: <entry id="75873" lang="en" sex="m">Maester Spellcasting (Outsider)</entry> | H175: 16853089 | J175: 16853089
A176: <entry id=" | B176: 75874 | C176: " lang="en" sex="m"> | D176: Mage Killer Spellcasting (Outsider) | E176: </entry> | F176: <entry id="75874" lang="en" sex="m">Mage Killer Spellcasting (Outsider)</entry> | H176: 16853090 | J176: 16853090
A177: <entry id=" | B177: 75875 | C177: " lang="en" sex="m"> | D177: Master Harper Spellcasting (Outsider) | E177: </entry> | F177: <entry id="75875" lang="en" sex="m">Master Harper Spellcasting (Outsider)</entry> | H177: 16853091 | J177: 16853091
A178: <entry id=" | B178: 75876 | C178: " lang="en" sex="m"> | D178: Mystic Theurge Spellcasting (Outsider) | E178: </entry> | F178: <entry id="75876" lang="en" sex="m">Mystic Theurge Spellcasting (Outsider)</entry> | H178: 16853092 | J178: 16853092
A179: <entry id=" | B179: 75877 | C179: " lang="en" sex="m"> | D179: Noctumancer Spellcasting (Outsider) | E179: </entry> | F179: <entry id="75877" lang="en" sex="m">Noctumancer Spellcasting (Outsider)</entry> | H179: 16853093 | J179: 16853093
A180: <entry id=" | B180: 75878 | C180: " lang="en" sex="m"> | D180: Oozemaster Spellcasting (Outsider) | E180: </entry> | F180: <entry id="75878" lang="en" sex="m">Oozemaster Spellcasting (Outsider)</entry> | H180: 16853094 | J180: 16853094
A181: <entry id=" | B181: 75879 | C181: " lang="en" sex="m"> | D181: Pale Master Spellcasting (Outsider) | E181: </entry> | F181: <entry id="75879" lang="en" sex="m">Pale Master Spellcasting (Outsider)</entry> | H181: 16853095 | J181: 16853095
A182: <entry id=" | B182: 75880 | C182: " lang="en" sex="m"> | D182: Rage Mage Spellcasting (Outsider) | E182: </entry> | F182: <entry id="75880" lang="en" sex="m">Rage Mage Spellcasting (Outsider)</entry> | H182: 16853096 | J182: 16853096
A183: <entry id=" | B183: 75881 | C183: " lang="en" sex="m"> | D183: Shadow Adept Spellcasting (Outsider) | E183: </entry> | F183: <entry id="75881" lang="en" sex="m">Shadow Adept Spellcasting (Outsider)</entry> | H183: 16853097 | J183: 16853097
A184: <entry id=" | B184: 75882 | C184: " lang="en" sex="m"> | D184: Soulcaster Spellcasting (Outsider) | E184: </entry> | F184: <entry id="75882" lang="en" sex="m">Soulcaster Spellcasting (Outsider)</entry> | H184: 16853098 | J184: 16853098
A185: <entry id=" | B185: 75883 | C185: " lang="en" sex="m"> | D185: Spelldancer Spellcasting (Outsider) | E185: </entry> | F185: <entry id="75883" lang="en" sex="m">Spelldancer Spellcasting (Outsider)</entry> | H185: 16853099 | J185: 16853099
A186: <entry id=" | B186: 75884 | C186: " lang="en" sex="m"> | D186: Spellsword Spellcasting (Outsider) | E186: </entry> | F186: <entry id="75884" lang="en" sex="m">Spellsword Spellcasting (Outsider)</entry> | H186: 16853100 | J186: 16853100
A187: <entry id=" | B187: 75885 | C187: " lang="en" sex="m"> | D187: Talon of Tiamat Spellcasting (Outsider) | E187: </entry> | F187: <entry id="75885" lang="en" sex="m">Talon of Tiamat Spellcasting (Outsider)</entry> | H187: 16853101 | J187: 16853101
A188: <entry id=" | B188: 75886 | C188: " lang="en" sex="m"> | D188: True Necromancer Spellcasting (Outsider) | E188: </entry> | F188: <entry id="75886" lang="en" sex="m">True Necromancer Spellcasting (Outsider)</entry> | H188: 16853102 | J188: 16853102
A189: <entry id=" | B189: 75887 | C189: " lang="en" sex="m"> | D189: Ultimate Magus Spellcasting (Outsider) | E189: </entry> | F189: <entry id="75887" lang="en" sex="m">Ultimate Magus Spellcasting (Outsider)</entry> | H189: 16853103 | J189: 16853103
A190: <entry id=" | B190: 75888 | C190: " lang="en" sex="m"> | D190: Unseen Seer Spellcasting (Outsider) | E190: </entry> | F190: <entry id="75888" lang="en" sex="m">Unseen Seer Spellcasting (Outsider)</entry> | H190: 16853104 | J190: 16853104
A191: <entry id=" | B191: 75889 | C191: " lang="en" sex="m"> | D191: Virtuoso Spellcasting (Outsider) | E191: </entry> | F191: <entry id="75889" lang="en" sex="m">Virtuoso Spellcasting (Outsider)</entry> | H191: 16853105 | J191: 16853105
A192: <entry id=" | B192: 75890 | C192: " lang="en" sex="m"> | D192: Wayfarer Guide Spellcasting (Outsider) | E192: </entry> | F192: <entry id="75890" lang="en" sex="m">Wayfarer Guide Spellcasting (Outsider)</entry> | H192: 16853106 | J192: 16853106
A193: <entry id=" | B193: 75891 | C193: " lang="en" sex="m"> | D193: Wild Mage Spellcasting (Outsider) | E193: </entry> | F193: <entry id="75891" lang="en" sex="m">Wild Mage Spellcasting (Outsider)</entry> | H193: 16853107 | J193: 16853107
A194: <entry id=" | B194: 75892 | C194: " lang="en" sex="m"> | D194: War Wizard of Cormyr Spellcasting (Outsider) | E194: </entry> | F194: <entry id="75892" lang="en" sex="m">War Wizard of Cormyr Spellcasting (Outsider)</entry> | H194: 16853108 | J194: 16853108
A195: <entry id=" | B195: 75893 | C195: " lang="en" sex="m"> | D195: Abjurant Champion Spellcasting (Shapechanger) | E195: </entry> | F195: =CONCATENATE(A195,B195,C195,D195,E195) -> <entry id="75893" lang="en" sex="m">Abjurant Champion Spellcasting (Shapechanger)</entry> | H195: =SUM(B195+16777216) -> 16853109 | J195: 16853109
A196: <entry id=" | B196: =SUM(B195+1) -> 75894 | C196: " lang="en" sex="m"> | D196: Acolyte of the Skin Spellcasting (Shapechanger) | E196: </entry> | F196: <entry id="75894" lang="en" sex="m">Acolyte of the Skin Spellcasting (Shapechanger)</entry> | H196: 16853110 | J196: 16853110
A197: <entry id=" | B197: 75895 | C197: " lang="en" sex="m"> | D197: Master Alchemist Spellcasting (Shapechanger) | E197: </entry> | F197: <entry id="75895" lang="en" sex="m">Master Alchemist Spellcasting (Shapechanger)</entry> | H197: 16853111 | J197: 16853111
A198: <entry id=" | B198: 75896 | C198: " lang="en" sex="m"> | D198: Alienist Spellcasting (Shapechanger) | E198: </entry> | F198: <entry id="75896" lang="en" sex="m">Alienist Spellcasting (Shapechanger)</entry> | H198: 16853112 | J198: 16853112
A199: <entry id=" | B199: 75897 | C199: " lang="en" sex="m"> | D199: Anima Mage Spellcasting (Shapechanger) | E199: </entry> | F199: <entry id="75897" lang="en" sex="m">Anima Mage Spellcasting (Shapechanger)</entry> | H199: 16853113 | J199: 16853113
A200: <entry id=" | B200: 75898 | C200: " lang="en" sex="m"> | D200: Archmage Spellcasting (Shapechanger) | E200: </entry> | F200: <entry id="75898" lang="en" sex="m">Archmage Spellcasting (Shapechanger)</entry> | H200: 16853114 | J200: 16853114
... 1195 more rows

Sheet Marker Feat Descriptions
A1: Name | B1: TLK Description | C1: 2DA Description
A2: FEAT_FEY_SPELLCASTING_GLOURA | B2: 77100 | C2: =SUM(B2+16777216) -> 16854316 | D2: 16854316
A3: FEAT_ABERRATION_SPELLCASTING_DRIDER | B3: =SUM(B2+1) -> 77101 | C3: =SUM(B3+16777216) -> 16854317 | D3: 16854317
A4: FEAT_MONSTROUS_SPELLCASTING_ARKAMOI | B4: =SUM(B3+1) -> 77102 | C4: =SUM(B4+16777216) -> 16854318 | D4: 16854318
A5: FEAT_MONSTROUS_SPELLCASTING_MARRUTACT | B5: 77103 | C5: 16854319 | D5: 16854319
A6: FEAT_MONSTROUS_SPELLCASTING_REDSPAWN_ARCANISS | B6: 77104 | C6: 16854320 | D6: 16854320
A7: FEAT_OUTSIDER_SPELLCASTING_RAKSHASA | B7: 77105 | C7: 16854321 | D7: 16854321
A8: FEAT_SHAPECHANGER_SPELLCASTING_ARANEA | B8: 77106 | C8: 16854322 | D8: 16854322
A9: FEAT_ABCHAMP_SPELLCASTING_FEY | B9: 77107 | C9: 16854323 | D9: 16854323
A10: FEAT_ACOLYTE_SPELLCASTING_FEY | B10: 77108 | C10: 16854324 | D10: 16854324
A11: FEAT_ALCHEM_SPELLCASTING_FEY | B11: 77109 | C11: 16854325 | D11: 16854325
A12: FEAT_ALIENIST_SPELLCASTING_FEY | B12: 77110 | C12: 16854326 | D12: 16854326
A13: FEAT_ANIMA_SPELLCASTING_FEY | B13: 77111 | C13: 16854327 | D13: 16854327
A14: FEAT_ARCHMAGE_SPELLCASTING_FEY | B14: 77112 | C14: 16854328 | D14: 16854328
A15: FEAT_ARCTRICK_SPELLCASTING_FEY | B15: 77113 | C15: 16854329 | D15: 16854329
A16: FEAT_ASMODEUS_SPELLCASTING_FEY | B16: 77114 | C16: 16854330 | D16: 16854330
A17: FEAT_BSINGER_SPELLCASTING_FEY | B17: 77115 | C17: 16854331 | D17: 16854331
A18: FEAT_BLDMAGUS_SPELLCASTING_FEY | B18: 77116 | C18: 16854332 | D18: 16854332
A19: FEAT_CMANCER_SPELLCASTING_FEY | B19: 77118 | C19: 16854334 | D19: 16854334
A20: FEAT_DIABOLIST_SPELLCASTING_FEY | B20: 77119 | C20: 16854335 | D20: 16854335
A21: FEAT_DHEART_SPELLCASTING_FEY | B21: 77120 | C21: 16854336 | D21: 16854336
A22: FEAT_DSONG_SPELLCASTING_FEY | B22: 77121 | C22: 16854337 | D22: 16854337
A23: FEAT_EKNIGHT_SPELLCASTING_FEY | B23: 77122 | C23: 16854338 | D23: 16854338
A24: FEAT_ENLIGHTENEDFIST_SPELLCASTING_FEY | B24: 77123 | C24: 16854339 | D24: 16854339
A25: FEAT_ELESAVANT_SPELLCASTING_FEY | B25: 77124 | C25: 16854340 | D25: 16854340
A26: FEAT_ETHEURGE_SPELLCASTING_FEY | B26: 77125 | C26: 16854341 | D26: 16854341
A27: FEAT_FOCHULAN_LYRIST_SPELLCASTING_FEY | B27: 77126 | C27: 16854342 | D27: 16854342
A28: FEAT_FROSTMAGE_SPELLCASTING_FEY | B28: 77128 | C28: 16854344 | D28: 16854344
A29: FEAT_GRAZZT_SPELLCASTING_FEY | B29: 77129 | C29: 16854345 | D29: 16854345
A30: FEAT_HARPERM_SPELLCASTING_FEY | B30: 77130 | C30: 16854346 | D30: 16854346
A31: FEAT_HATHRAN_SPELLCASTING_FEY | B31: 77131 | C31: 16854347 | D31: 16854347
A32: FEAT_HAVOC_SPELLCASTING_FEY | B32: 77132 | C32: 16854348 | D32: 16854348
A33: FEAT_JPM_SPELLCASTING_FEY | B33: 77133 | C33: 16854349 | D33: 16854349
A34: FEAT_JUDICATOR_SPELLCASTING_FEY | B34: 77134 | C34: 16854350 | D34: 16854350
A35: FEAT_MAESTER_SPELLCASTING_FEY | B35: 77135 | C35: 16854351 | D35: 16854351
A36: FEAT_MAGEKILLER_SPELLCASTING_FEY | B36: 77136 | C36: 16854352 | D36: 16854352
A37: FEAT_MHARPER_SPELLCASTING_FEY | B37: 77137 | C37: 16854353 | D37: 16854353
A38: FEAT_MYSTIC_THEURGE_SPELLCASTING_FEY | B38: 77138 | C38: 16854354 | D38: 16854354
A39: FEAT_NOCTUMANCER_SPELLCASTING_FEY | B39: 77139 | C39: 16854355 | D39: 16854355
A40: FEAT_OOZEMASTER_SPELLCASTING_FEY | B40: 77140 | C40: 16854356 | D40: 16854356
A41: FEAT_PALEMASTER_SPELLCASTING_FEY | B41: 77141 | C41: 16854357 | D41: 16854357
A42: FEAT_RAGEMAGE_SPELLCASTING_FEY | B42: 77142 | C42: 16854358 | D42: 16854358
A43: FEAT_SHADOWADEPT_SPELLCASTING_FEY | B43: 77144 | C43: 16854360 | D43: 16854360
A44: FEAT_SOULCASTER_SPELLCASTING_FEY | B44: 77145 | C44: 16854361 | D44: 16854361
A45: FEAT_SPELLDANCER_SPELLCASTING_FEY | B45: 77146 | C45: 16854362 | D45: 16854362
A46: FEAT_SSWORD_SPELLCASTING_FEY | B46: 77147 | C46: 16854363 | D46: 16854363
A47: FEAT_TIAMAT_SPELLCASTING_FEY | B47: 77148 | C47: 16854364 | D47: 16854364
A48: FEAT_TNECRO_SPELLCASTING_FEY | B48: 77149 | C48: 16854365 | D48: 16854365
A49: FEAT_ULTMAGUS_SPELLCASTING_FEY | B49: 77150 | C49: 16854366 | D49: 16854366
A50: FEAT_UNSEEN_SPELLCASTING_FEY | B50: 77151 | C50: 16854367 | D50: 16854367
A51: FEAT_VIRTUOSO_SPELLCASTING_FEY | B51: 77152 | C51: 16854368 | D51: 16854368
A52: FEAT_WILDMAGE_SPELLCASTING_FEY | B52: 77153 | C52: 16854369 | D52: 16854369
A53: FEAT_WWOC_SPELLCASTING_FEY | B53: 77155 | C53: 16854371 | D53: 16854371
A54: FEAT_ABCHAMP_SPELLCASTING_ABERRATION | B54: 77107 | C54: =SUM(B54+16777216) -> 16854323 | D54: 16854323
A55: FEAT_ACOLYTE_SPELLCASTING_ABERRATION | B55: 77108 | C55: 16854324 | D55: 16854324
A56: FEAT_ALCHEM_SPELLCASTING_ABERRATION | B56: 77109 | C56: 16854325 | D56: 16854325
A57: FEAT_ALIENIST_SPELLCASTING_ABERRATION | B57: 77110 | C57: 16854326 | D57: 16854326
A58: FEAT_ANIMA_SPELLCASTING_ABERRATION | B58: 77111 | C58: 16854327 | D58: 16854327
A59: FEAT_ARCHMAGE_SPELLCASTING_ABERRATION | B59: 77112 | C59: 16854328 | D59: 16854328
A60: FEAT_ARCTRICK_SPELLCASTING_ABERRATION | B60: 77113 | C60: =SUM(B60+16777216) -> 16854329 | D60: 16854329
A61: FEAT_ASMODEUS_SPELLCASTING_ABERRATION | B61: 77114 | C61: =SUM(B61+16777216) -> 16854330 | D61: 16854330
A62: FEAT_BSINGER_SPELLCASTING_ABERRATION | B62: 77115 | C62: 16854331 | D62: 16854331
A63: FEAT_BLDMAGUS_SPELLCASTING_ABERRATION | B63: 77116 | C63: 16854332 | D63: 16854332
A64: FEAT_CMANCER_SPELLCASTING_ABERRATION | B64: 77118 | C64: 16854334 | D64: 16854334
A65: FEAT_DIABOLIST_SPELLCASTING_ABERRATION | B65: 77119 | C65: 16854335 | D65: 16854335
A66: FEAT_DHEART_SPELLCASTING_ABERRATION | B66: 77120 | C66: 16854336 | D66: 16854336
A67: FEAT_DSONG_SPELLCASTING_ABERRATION | B67: 77121 | C67: 16854337 | D67: 16854337
A68: FEAT_EKNIGHT_SPELLCASTING_ABERRATION | B68: 77122 | C68: 16854338 | D68: 16854338
A69: FEAT_ENLIGHTENEDFIST_SPELLCASTING_ABERRATION | B69: 77123 | C69: 16854339 | D69: 16854339
A70: FEAT_ELESAVANT_SPELLCASTING_ABERRATION | B70: 77124 | C70: 16854340 | D70: 16854340
A71: FEAT_ETHEURGE_SPELLCASTING_ABERRATION | B71: 77125 | C71: 16854341 | D71: 16854341
A72: FEAT_FMM_SPELLCASTING_ABERRATION | B72: 77127 | C72: =SUM(B72+16777216) -> 16854343 | D72: 16854343
A73: FEAT_FOCHULAN_LYRIST_SPELLCASTING_ABERRATION | B73: 77126 | C73: 16854342 | D73: 16854342
A74: FEAT_FROSTMAGE_SPELLCASTING_ABERRATION | B74: 77128 | C74: 16854344 | D74: 16854344
A75: FEAT_GRAZZT_SPELLCASTING_ABERRATION | B75: 77129 | C75: 16854345 | D75: 16854345
A76: FEAT_HARPERM_SPELLCASTING_ABERRATION | B76: 77130 | C76: 16854346 | D76: 16854346
A77: FEAT_HATHRAN_SPELLCASTING_ABERRATION | B77: 77131 | C77: 16854347 | D77: 16854347
A78: FEAT_HAVOC_SPELLCASTING_ABERRATION | B78: 77132 | C78: 16854348 | D78: 16854348
A79: FEAT_JPM_SPELLCASTING_ABERRATION | B79: 77133 | C79: 16854349 | D79: 16854349
A80: FEAT_JUDICATOR_SPELLCASTING_ABERRATION | B80: 77134 | C80: 16854350 | D80: 16854350
A81: FEAT_MAESTER_SPELLCASTING_ABERRATION | B81: 77135 | C81: 16854351 | D81: 16854351
A82: FEAT_MAGEKILLER_SPELLCASTING_ABERRATION | B82: 77136 | C82: 16854352 | D82: 16854352
A83: FEAT_MHARPER_SPELLCASTING_ABERRATION | B83: 77137 | C83: 16854353 | D83: 16854353
A84: FEAT_MYSTIC_THEURGE_SPELLCASTING_ABERRATION | B84: 77138 | C84: 16854354 | D84: 16854354
A85: FEAT_NOCTUMANCER_SPELLCASTING_ABERRATION | B85: 77139 | C85: 16854355 | D85: 16854355
A86: FEAT_OOZEMASTER_SPELLCASTING_ABERRATION | B86: 77140 | C86: 16854356 | D86: 16854356
A87: FEAT_PALEMASTER_SPELLCASTING_ABERRATION | B87: 77141 | C87: 16854357 | D87: 16854357
A88: FEAT_RAGEMAGE_SPELLCASTING_ABERRATION | B88: 77142 | C88: 16854358 | D88: 16854358
A89: FEAT_SHADOWADEPT_SPELLCASTING_ABERRATION | B89: 77144 | C89: 16854360 | D89: 16854360
A90: FEAT_SOULCASTER_SPELLCASTING_ABERRATION | B90: 77145 | C90: 16854361 | D90: 16854361
A91: FEAT_SPELLDANCER_SPELLCASTING_ABERRATION | B91: 77146 | C91: 16854362 | D91: 16854362
A92: FEAT_SSWORD_SPELLCASTING_ABERRATION | B92: 77147 | C92: 16854363 | D92: 16854363
A93: FEAT_TIAMAT_SPELLCASTING_ABERRATION | B93: 77148 | C93: 16854364 | D93: 16854364
A94: FEAT_TNECRO_SPELLCASTING_ABERRATION | B94: 77149 | C94: 16854365 | D94: 16854365
A95: FEAT_ULTMAGUS_SPELLCASTING_ABERRATION | B95: 77150 | C95: 16854366 | D95: 16854366
A96: FEAT_UNSEEN_SPELLCASTING_ABERRATION | B96: 77151 | C96: 16854367 | D96: 16854367
A97: FEAT_VIRTUOSO_SPELLCASTING_ABERRATION | B97: 77152 | C97: 16854368 | D97: 16854368
A98: FEAT_WAYFARER_SPELLCASTING_ABERRATION | B98: 77153 | C98: 16854369 | D98: 16854369
A99: FEAT_WILDMAGE_SPELLCASTING_ABERRATION | B99: 77153 | C99: 16854369 | D99: 16854369
A100: FEAT_WWOC_SPELLCASTING_ABERRATION | B100: 77155 | C100: 16854371 | D100: 16854371
A101: FEAT_ABCHAMP_SPELLCASTING_MONSTROUS | B101: 77107 | C101: =SUM(B101+16777216) -> 16854323 | D101: 16854323
A102: FEAT_ACOLYTE_SPELLCASTING_MONSTROUS | B102: 77108 | C102: 16854324 | D102: 16854324
A103: FEAT_ALCHEM_SPELLCASTING_MONSTROUS | B103: 77109 | C103: 16854325 | D103: 16854325
A104: FEAT_ALIENIST_SPELLCASTING_MONSTROUS | B104: 77110 | C104: 16854326 | D104: 16854326
A105: FEAT_ANIMA_SPELLCASTING_MONSTROUS | B105: 77111 | C105: 16854327 | D105: 16854327
A106: FEAT_ARCHMAGE_SPELLCASTING_MONSTROUS | B106: 77112 | C106: 16854328 | D106: 16854328
A107: FEAT_ARCTRICK_SPELLCASTING_MONSTROUS | B107: 77113 | C107: =SUM(B107+16777216) -> 16854329 | D107: 16854329
A108: FEAT_ASMODEUS_SPELLCASTING_MONSTROUS | B108: 77114 | C108: =SUM(B108+16777216) -> 16854330 | D108: 16854330
A109: FEAT_BSINGER_SPELLCASTING_MONSTROUS | B109: 77115 | C109: 16854331 | D109: 16854331
A110: FEAT_BLDMAGUS_SPELLCASTING_MONSTROUS | B110: 77116 | C110: 16854332 | D110: 16854332
A111: FEAT_CMANCER_SPELLCASTING_MONSTROUS | B111: 77118 | C111: 16854334 | D111: 16854334
A112: FEAT_DHEART_SPELLCASTING_MONSTROUS | B112: 77120 | C112: 16854336 | D112: 16854336
A113: FEAT_DIABOLIST_SPELLCASTING_MONSTROUS | B113: 77119 | C113: =SUM(B113+16777216) -> 16854335 | D113: 16854335
A114: FEAT_DSONG_SPELLCASTING_MONSTROUS | B114: 77121 | C114: 16854337 | D114: 16854337
A115: FEAT_EKNIGHT_SPELLCASTING_MONSTROUS | B115: 77122 | C115: 16854338 | D115: 16854338
A116: FEAT_ENLIGHTENEDFIST_SPELLCASTING_MONSTROUS | B116: 77123 | C116: 16854339 | D116: 16854339
A117: FEAT_ELESAVANT_SPELLCASTING_MONSTROUS | B117: 77124 | C117: 16854340 | D117: 16854340
A118: FEAT_ETHEURGE_SPELLCASTING_MONSTROUS | B118: 77125 | C118: 16854341 | D118: 16854341
A119: FEAT_FMM_SPELLCASTING_MONSTROUS | B119: 77127 | C119: 16854343 | D119: 16854343
A120: FEAT_FOCHULAN_LYRIST_SPELLCASTING_MONSTROUS | B120: 77126 | C120: =SUM(B120+16777216) -> 16854342 | D120: 16854342
A121: FEAT_FROSTMAGE_SPELLCASTING_MONSTROUS | B121: 77128 | C121: 16854344 | D121: 16854344
A122: FEAT_GRAZZT_SPELLCASTING_MONSTROUS | B122: 77129 | C122: 16854345 | D122: 16854345
A123: FEAT_HARPERM_SPELLCASTING_MONSTROUS | B123: 77130 | C123: 16854346 | D123: 16854346
A124: FEAT_HATHRAN_SPELLCASTING_MONSTROUS | B124: 77131 | C124: 16854347 | D124: 16854347
A125: FEAT_HAVOC_SPELLCASTING_MONSTROUS | B125: 77132 | C125: 16854348 | D125: 16854348
A126: FEAT_JPM_SPELLCASTING_MONSTROUS | B126: 77133 | C126: 16854349 | D126: 16854349
A127: FEAT_JUDICATOR_SPELLCASTING_MONSTROUS | B127: 77134 | C127: 16854350 | D127: 16854350
A128: FEAT_MAESTER_SPELLCASTING_MONSTROUS | B128: 77135 | C128: 16854351 | D128: 16854351
A129: FEAT_MAGEKILLER_SPELLCASTING_MONSTROUS | B129: 77136 | C129: 16854352 | D129: 16854352
A130: FEAT_MHARPER_SPELLCASTING_MONSTROUS | B130: 77137 | C130: 16854353 | D130: 16854353
A131: FEAT_MYSTIC_THEURGE_SPELLCASTING_MONSTROUS | B131: 77138 | C131: 16854354 | D131: 16854354
A132: FEAT_NOCTUMANCER_SPELLCASTING_MONSTROUS | B132: 77139 | C132: 16854355 | D132: 16854355
A133: FEAT_OOZEMASTER_SPELLCASTING_MONSTROUS | B133: 77140 | C133: 16854356 | D133: 16854356
A134: FEAT_PALEMASTER_SPELLCASTING_MONSTROUS | B134: 77141 | C134: 16854357 | D134: 16854357
A135: FEAT_RAGEMAGE_SPELLCASTING_MONSTROUS | B135: 77142 | C135: 16854358 | D135: 16854358
A136: FEAT_SHADOWADEPT_SPELLCASTING_MONSTROUS | B136: 77144 | C136: 16854360 | D136: 16854360
A137: FEAT_SOULCASTER_SPELLCASTING_MONSTROUS | B137: 77145 | C137: 16854361 | D137: 16854361
A138: FEAT_SPELLDANCER_SPELLCASTING_MONSTROUS | B138: 77146 | C138: 16854362 | D138: 16854362
A139: FEAT_SSWORD_SPELLCASTING_MONSTROUS | B139: 77147 | C139: 16854363 | D139: 16854363
A140: FEAT_TIAMAT_SPELLCASTING_MONSTROUS | B140: 77148 | C140: 16854364 | D140: 16854364
A141: FEAT_TNECRO_SPELLCASTING_MONSTROUS | B141: 77149 | C141: 16854365 | D141: 16854365
A142: FEAT_ULTMAGUS_SPELLCASTING_MONSTROUS | B142: 77150 | C142: 16854366 | D142: 16854366
A143: FEAT_UNSEEN_SPELLCASTING_MONSTROUS | B143: 77151 | C143: 16854367 | D143: 16854367
A144: FEAT_VIRTUOSO_SPELLCASTING_MONSTROUS | B144: 77152 | C144: 16854368 | D144: 16854368
A145: FEAT_WAYFARER_SPELLCASTING_MONSTROUS | B145: 77153 | C145: 16854369 | D145: 16854369
A146: FEAT_WILDMAGE_SPELLCASTING_MONSTROUS | B146: 77153 | C146: 16854369 | D146: 16854369
A147: FEAT_WWOC_SPELLCASTING_MONSTROUS | B147: 77155 | C147: 16854371 | D147: 16854371
A148: FEAT_ABCHAMP_SPELLCASTING_OUTSIDER | B148: 77107 | C148: =SUM(B148+16777216) -> 16854323 | D148: 16854323
A149: FEAT_ACOLYTE_SPELLCASTING_OUTSIDER | B149: 77108 | C149: 16854324 | D149: 16854324
A150: FEAT_ALCHEM_SPELLCASTING_OUTSIDER | B150: 77109 | C150: 16854325 | D150: 16854325
A151: FEAT_ALIENIST_SPELLCASTING_OUTSIDER | B151: 77110 | C151: 16854326 | D151: 16854326
A152: FEAT_ANIMA_SPELLCASTING_OUTSIDER | B152: 77111 | C152: 16854327 | D152: 16854327
A153: FEAT_ARCHMAGE_SPELLCASTING_OUTSIDER | B153: 77112 | C153: 16854328 | D153: 16854328
A154: FEAT_ARCTRICK_SPELLCASTING_OUTSIDER | B154: 77113 | C154: =SUM(B154+16777216) -> 16854329 | D154: 16854329
A155: FEAT_ASMODEUS_SPELLCASTING_OUTSIDER | B155: 77114 | C155: =SUM(B155+16777216) -> 16854330 | D155: 16854330
A156: FEAT_BSINGER_SPELLCASTING_OUTSIDER | B156: 77115 | C156: 16854331 | D156: 16854331
A157: FEAT_BLDMAGUS_SPELLCASTING_OUTSIDER | B157: 77116 | C157: 16854332 | D157: 16854332
A158: FEAT_CMANCER_SPELLCASTING_OUTSIDER | B158: 77118 | C158: 16854334 | D158: 16854334
A159: FEAT_DHEART_SPELLCASTING_OUTSIDER | B159: 77120 | C159: 16854336 | D159: 16854336
A160: FEAT_DIABOLIST_SPELLCASTING_OUTSIDER | B160: 77119 | C160: =SUM(B160+16777216) -> 16854335 | D160: 16854335
A161: FEAT_DSONG_SPELLCASTING_OUTSIDER | B161: 77121 | C161: 16854337 | D161: 16854337
A162: FEAT_EKNIGHT_SPELLCASTING_OUTSIDER | B162: 77122 | C162: 16854338 | D162: 16854338
A163: FEAT_ENLIGHTENEDFIST_SPELLCASTING_OUTSIDER | B163: 77123 | C163: 16854339 | D163: 16854339
A164: FEAT_ELESAVANT_SPELLCASTING_OUTSIDER | B164: 77124 | C164: 16854340 | D164: 16854340
A165: FEAT_ETHEURGE_SPELLCASTING_OUTSIDER | B165: 77125 | C165: 16854341 | D165: 16854341
A166: FEAT_FMM_SPELLCASTING_OUTSIDER | B166: 77127 | C166: 16854343 | D166: 16854343
A167: FEAT_FOCHULAN_LYRIST_SPELLCASTING_OUTSIDER | B167: 77126 | C167: =SUM(B167+16777216) -> 16854342 | D167: 16854342
A168: FEAT_FROSTMAGE_SPELLCASTING_OUTSIDER | B168: 77128 | C168: 16854344 | D168: 16854344
A169: FEAT_GRAZZT_SPELLCASTING_OUTSIDER | B169: 77129 | C169: 16854345 | D169: 16854345
A170: FEAT_HARPERM_SPELLCASTING_OUTSIDER | B170: 77130 | C170: 16854346 | D170: 16854346
A171: FEAT_HATHRAN_SPELLCASTING_OUTSIDER | B171: 77131 | C171: 16854347 | D171: 16854347
A172: FEAT_HAVOC_SPELLCASTING_OUTSIDER | B172: 77132 | C172: 16854348 | D172: 16854348
A173: FEAT_JPM_SPELLCASTING_OUTSIDER | B173: 77133 | C173: 16854349 | D173: 16854349
A174: FEAT_JUDICATOR_SPELLCASTING_OUTSIDER | B174: 77134 | C174: 16854350 | D174: 16854350
A175: FEAT_MAESTER_SPELLCASTING_OUTSIDER | B175: 77135 | C175: 16854351 | D175: 16854351
A176: FEAT_MAGEKILLER_SPELLCASTING_OUTSIDER | B176: 77136 | C176: 16854352 | D176: 16854352
A177: FEAT_MHARPER_SPELLCASTING_OUTSIDER | B177: 77137 | C177: 16854353 | D177: 16854353
A178: FEAT_MYSTIC_THEURGE_SPELLCASTING_OUTSIDER | B178: 77138 | C178: 16854354 | D178: 16854354
A179: FEAT_NOCTUMANCER_SPELLCASTING_OUTSIDER | B179: 77139 | C179: 16854355 | D179: 16854355
A180: FEAT_OOZEMASTER_SPELLCASTING_OUTSIDER | B180: 77140 | C180: 16854356 | D180: 16854356
A181: FEAT_PALEMASTER_SPELLCASTING_OUTSIDER | B181: 77141 | C181: 16854357 | D181: 16854357
A182: FEAT_RAGEMAGE_SPELLCASTING_OUTSIDER | B182: 77142 | C182: 16854358 | D182: 16854358
A183: FEAT_SHADOWADEPT_SPELLCASTING_OUTSIDER | B183: 77144 | C183: 16854360 | D183: 16854360
A184: FEAT_SOULCASTER_SPELLCASTING_OUTSIDER | B184: 77145 | C184: 16854361 | D184: 16854361
A185: FEAT_SPELLDANCER_SPELLCASTING_OUTSIDER | B185: 77146 | C185: 16854362 | D185: 16854362
A186: FEAT_SSWORD_SPELLCASTING_OUTSIDER | B186: 77147 | C186: 16854363 | D186: 16854363
A187: FEAT_TIAMAT_SPELLCASTING_OUTSIDER | B187: 77148 | C187: 16854364 | D187: 16854364
A188: FEAT_TNECRO_SPELLCASTING_OUTSIDER | B188: 77149 | C188: 16854365 | D188: 16854365
A189: FEAT_ULTMAGUS_SPELLCASTING_OUTSIDER | B189: 77150 | C189: 16854366 | D189: 16854366
A190: FEAT_UNSEEN_SPELLCASTING_OUTSIDER | B190: 77151 | C190: 16854367 | D190: 16854367
A191: FEAT_VIRTUOSO_SPELLCASTING_OUTSIDER | B191: 77152 | C191: 16854368 | D191: 16854368
A192: FEAT_WAYFARER_SPELLCASTING_OUTSIDER | B192: 77153 | C192: 16854369 | D192: 16854369
A193: FEAT_WILDMAGE_SPELLCASTING_OUTSIDER | B193: 77153 | C193: 16854369 | D193: 16854369
A194: FEAT_WWOC_SPELLCASTING_OUTSIDER | B194: 77155 | C194: 16854371 | D194: 16854371
A195: FEAT_ABCHAMP_SPELLCASTING_SHAPECHANGER | B195: 77107 | C195: =SUM(B195+16777216) -> 16854323 | D195: 16854323
A196: FEAT_ACOLYTE_SPELLCASTING_SHAPECHANGER | B196: 77108 | C196: 16854324 | D196: 16854324
A197: FEAT_ALCHEM_SPELLCASTING_SHAPECHANGER | B197: 77109 | C197: 16854325 | D197: 16854325
A198: FEAT_ALIENIST_SPELLCASTING_SHAPECHANGER | B198: 77110 | C198: 16854326 | D198: 16854326
A199: FEAT_ANIMA_SPELLCASTING_SHAPECHANGER | B199: 77111 | C199: 16854327 | D199: 16854327
A200: FEAT_ARCHMAGE_SPELLCASTING_SHAPECHANGER | B200: 77112 | C200: 16854328 | D200: 16854328
... 1195 more rows

Sheet Invoker Marker Feat Constants
B1: //:: Warlock invoking marker feats | H1: =CONCATENATE(B1, C1, D1, F1, G1) -> //:: Warlock invoking marker feats
A2: const int | B2: FEAT_ABCHAMP_INVOKING_WARLOCK | D2: = | F2: 26681 | G2: ; | H2: =CONCATENATE(A2,B2, C2, D2, E2, F2, G2) -> const int FEAT_ABCHAMP_INVOKING_WARLOCK = 26681;
A3: const int | B3: FEAT_AOTS_INVOKING_WARLOCK | D3: = | F3: =SUM(F2+1) -> 26682 | G3: ; | H3: =CONCATENATE(A3,B3, C3, D3, E3, F3, G3) -> const int FEAT_AOTS_INVOKING_WARLOCK = 26682;
A4: const int | B4: FEAT_ANIMA_INVOKING_WARLOCK | D4: = | F4: =SUM(F3+1) -> 26683 | G4: ; | H4: const int FEAT_ANIMA_INVOKING_WARLOCK = 26683;
A5: const int | B5: FEAT_ARCTRICK_INVOKING_WARLOCK | D5: = | F5: 26684 | G5: ; | H5: const int FEAT_ARCTRICK_INVOKING_WARLOCK = 26684;
A6: const int | B6: FEAT_BLDMAGUS_INVOKING_WARLOCK | D6: = | F6: 26685 | G6: ; | H6: const int FEAT_BLDMAGUS_INVOKING_WARLOCK = 26685;
A7: const int | B7: FEAT_ASMODEUS_INVOKING_WARLOCK | D7: = | F7: 26686 | G7: ; | H7: const int FEAT_ASMODEUS_INVOKING_WARLOCK = 26686;
A8: const int | B8: FEAT_ELDISCIPLE_INVOKING_WARLOCK | D8: = | F8: 26687 | G8: ; | H8: const int FEAT_ELDISCIPLE_INVOKING_WARLOCK = 26687;
A9: const int | B9: FEAT_ETHEURGE_INVOKING_WARLOCK | D9: = | F9: 26688 | G9: ; | H9: const int FEAT_ETHEURGE_INVOKING_WARLOCK = 26688;
A10: const int | B10: FEAT_ENLIGHTENEDFIST_INVOKING_WARLOCK | D10: = | F10: 26689 | G10: ; | H10: const int FEAT_ENLIGHTENEDFIST_INVOKING_WARLOCK = 26689;
A11: const int | B11: FEAT_HELLFIRE_INVOKING_WARLOCK | D11: = | F11: 26690 | G11: ; | H11: const int FEAT_HELLFIRE_INVOKING_WARLOCK = 26690;
A12: const int | B12: FEAT_MAESTER_INVOKING_WARLOCK | D12: = | F12: 26691 | G12: ; | H12: const int FEAT_MAESTER_INVOKING_WARLOCK = 26691;
A13: const int | B13: FEAT_TIAMAT_INVOKING_WARLOCK | D13: = | F13: 26692 | G13: ; | H13: const int FEAT_TIAMAT_INVOKING_WARLOCK = 26692;
A14: const int | B14: FEAT_UNSEEN_INVOKING_WARLOCK | D14: = | F14: 26693 | G14: ; | H14: const int FEAT_UNSEEN_INVOKING_WARLOCK = 26693;
A15: const int | B15: FEAT_VIRTUOSO_INVOKING_WARLOCK | D15: = | F15: 26694 | G15: ; | H15: const int FEAT_VIRTUOSO_INVOKING_WARLOCK = 26694;
A16: const int | B16: FEAT_WILDMAGE_INVOKING_WARLOCK | D16: = | F16: 26695 | G16: ; | H16: const int FEAT_WILDMAGE_INVOKING_WARLOCK = 26695;
B18: //:: Dragonfire Adept invoking marker feats | H18: =CONCATENATE(B18, C18, D18, F18, G18) -> //:: Dragonfire Adept invoking marker feats
A19: const int | B19: FEAT_ABCHAMP_INVOKING_DFA | D19: = | F19: =SUM(F16+1) -> 26696 | G19: ; | H19: =CONCATENATE(A19,B19, C19, D19, E19, F19, G19) -> const int FEAT_ABCHAMP_INVOKING_DFA = 26696;
A20: const int | B20: FEAT_AOTS_INVOKING_DFA | D20: = | F20: =SUM(F19+1) -> 26697 | G20: ; | H20: =CONCATENATE(A20,B20, C20, D20, E20, F20, G20) -> const int FEAT_AOTS_INVOKING_DFA = 26697;
A21: const int | B21: FEAT_ANIMA_INVOKING_DFA | D21: = | F21: =SUM(F20+1) -> 26698 | G21: ; | H21: =CONCATENATE(A21,B21, C21, D21, E21, F21, G21) -> const int FEAT_ANIMA_INVOKING_DFA = 26698;
A22: const int | B22: FEAT_ARCTRICK_INVOKING_DFA | D22: = | F22: 26699 | G22: ; | H22: const int FEAT_ARCTRICK_INVOKING_DFA = 26699;
A23: const int | B23: FEAT_BLDMAGUS_INVOKING_DFA | D23: = | F23: 26700 | G23: ; | H23: const int FEAT_BLDMAGUS_INVOKING_DFA = 26700;
A24: const int | B24: FEAT_ASMODEUS_INVOKING_DFA | D24: = | F24: 26701 | G24: ; | H24: const int FEAT_ASMODEUS_INVOKING_DFA = 26701;
A25: const int | B25: FEAT_ENLIGHTENEDFIST_INVOKING_DFA | D25: = | F25: 26702 | G25: ; | H25: const int FEAT_ENLIGHTENEDFIST_INVOKING_DFA = 26702;
A26: const int | B26: FEAT_MAESTER_INVOKING_DFA | D26: = | F26: =SUM(F25+1) -> 26703 | G26: ; | H26: const int FEAT_MAESTER_INVOKING_DFA = 26703;
A27: const int | B27: FEAT_TIAMAT_INVOKING_DFA | D27: = | F27: 26704 | G27: ; | H27: const int FEAT_TIAMAT_INVOKING_DFA = 26704;
A28: const int | B28: FEAT_UNSEEN_INVOKING_DFA | D28: = | F28: 26705 | G28: ; | H28: const int FEAT_UNSEEN_INVOKING_DFA = 26705;
A29: const int | B29: FEAT_VIRTUOSO_INVOKING_DFA | D29: = | F29: 26706 | G29: ; | H29: const int FEAT_VIRTUOSO_INVOKING_DFA = 26706;
A30: const int | B30: FEAT_WILDMAGE_INVOKING_DFA | D30: = | F30: 26707 | G30: ; | H30: const int FEAT_WILDMAGE_INVOKING_DFA = 26707;
B32: //:: Dragon Shaman invoking marker feats | H32: =CONCATENATE(B32, C32, D32, F32, G32) -> //:: Dragon Shaman invoking marker feats
A33: const int | B33: FEAT_ABCHAMP_INVOKING_DRAGON_SHAMAN | D33: = | F33: =SUM(F30+1) -> 26708 | G33: ; | H33: =CONCATENATE(A33,B33, C33, D33, E33, F33, G33) -> const int FEAT_ABCHAMP_INVOKING_DRAGON_SHAMAN = 26708;
A34: const int | B34: FEAT_ASMODEUS_INVOKING_DRAGON_SHAMAN | D34: = | F34: =SUM(F33+1) -> 26709 | G34: ; | H34: =CONCATENATE(A34,B34, C34, D34, E34, F34, G34) -> const int FEAT_ASMODEUS_INVOKING_DRAGON_SHAMAN = 26709;
A35: const int | B35: FEAT_ENLIGHTENEDFIST_INVOKING_DRAGON_SHAMAN | D35: = | F35: =SUM(F34+1) -> 26710 | G35: ; | H35: const int FEAT_ENLIGHTENEDFIST_INVOKING_DRAGON_SHAMAN = 26710;
A36: const int | B36: FEAT_TIAMAT_INVOKING_DRAGON_SHAMAN | D36: = | F36: 26711 | G36: ; | H36: const int FEAT_TIAMAT_INVOKING_DRAGON_SHAMAN = 26711;
A37: const int | B37: FEAT_UNSEEN_INVOKING_DRAGON_SHAMAN | D37: = | F37: 26712 | G37: ; | H37: const int FEAT_UNSEEN_INVOKING_DRAGON_SHAMAN = 26712;
A38: const int | B38: FEAT_VIRTUOSO_INVOKING_DRAGON_SHAMAN | D38: = | F38: 26713 | G38: ; | H38: const int FEAT_VIRTUOSO_INVOKING_DRAGON_SHAMAN = 26713;
A39: const int | B39: FEAT_WILDMAGE_INVOKING_DRAGON_SHAMAN | D39: = | F39: 26714 | G39: ; | H39: const int FEAT_WILDMAGE_INVOKING_DRAGON_SHAMAN = 26714;

Sheet Invoker Marker Feat TLK Work
A1: <entry id=" | B1: 77081 | C1: " lang="en" sex="m"> | D1: Abjurant Champion Invoking (Warlock) | E1: </entry> | F1: =CONCATENATE(A1,B1,C1,D1,E1) -> <entry id="77081" lang="en" sex="m">Abjurant Champion Invoking (Warlock)</entry>
A2: <entry id=" | B2: =SUM(B1+1) -> 77082 | C2: " lang="en" sex="m"> | D2: Acolye of the Skin Invoking (Warlock) | E2: </entry> | F2: =CONCATENATE(A2,B2,C2,D2,E2) -> <entry id="77082" lang="en" sex="m">Acolye of the Skin Invoking (Warlock)</entry>
A3: <entry id=" | B3: =SUM(B2+1) -> 77083 | C3: " lang="en" sex="m"> | D3: Anima Mage Invoking (Warlock) | E3: </entry> | F3: <entry id="77083" lang="en" sex="m">Anima Mage Invoking (Warlock)</entry>
A4: <entry id=" | B4: 77084 | C4: " lang="en" sex="m"> | D4: Arcane Trickster Invoking (Warlock) | E4: </entry> | F4: <entry id="77084" lang="en" sex="m">Arcane Trickster Invoking (Warlock)</entry>
A5: <entry id=" | B5: 77085 | C5: " lang="en" sex="m"> | D5: Blood Magus Invoking (Warlock) | E5: </entry> | F5: <entry id="77085" lang="en" sex="m">Blood Magus Invoking (Warlock)</entry>
A6: <entry id=" | B6: 77086 | C6: " lang="en" sex="m"> | D6: Disciple of Asmodeus Invoking (Warlock) | E6: </entry> | F6: <entry id="77086" lang="en" sex="m">Disciple of Asmodeus Invoking (Warlock)</entry>
A7: <entry id=" | B7: 77087 | C7: " lang="en" sex="m"> | D7: Eldritch Disciple Invoking (Warlock) | E7: </entry> | F7: <entry id="77087" lang="en" sex="m">Eldritch Disciple Invoking (Warlock)</entry>
A8: <entry id=" | B8: 77088 | C8: " lang="en" sex="m"> | D8: Eldritch Theurge Invoking (Warlock) | E8: </entry> | F8: <entry id="77088" lang="en" sex="m">Eldritch Theurge Invoking (Warlock)</entry>
A9: <entry id=" | B9: 77089 | C9: " lang="en" sex="m"> | D9: Enlighted Fist Invoking (Warlock) | E9: </entry> | F9: <entry id="77089" lang="en" sex="m">Enlighted Fist Invoking (Warlock)</entry>
A10: <entry id=" | B10: 77090 | C10: " lang="en" sex="m"> | D10: Hellfire Warlock Invoking (Warlock) | E10: </entry> | F10: <entry id="77090" lang="en" sex="m">Hellfire Warlock Invoking (Warlock)</entry>
A11: <entry id=" | B11: 77091 | C11: " lang="en" sex="m"> | D11: Maester Invoking (Warlock) | E11: </entry> | F11: <entry id="77091" lang="en" sex="m">Maester Invoking (Warlock)</entry>
A12: <entry id=" | B12: 77092 | C12: " lang="en" sex="m"> | D12: Talon of Tiamat Invoking (Warlock) | E12: </entry> | F12: <entry id="77092" lang="en" sex="m">Talon of Tiamat Invoking (Warlock)</entry>
A13: <entry id=" | B13: 77093 | C13: " lang="en" sex="m"> | D13: Unseen Seer Invoking (Warlock) | E13: </entry> | F13: <entry id="77093" lang="en" sex="m">Unseen Seer Invoking (Warlock)</entry>
A14: <entry id=" | B14: 77094 | C14: " lang="en" sex="m"> | D14: Virtuoso Invoking (Warlock) | E14: </entry> | F14: <entry id="77094" lang="en" sex="m">Virtuoso Invoking (Warlock)</entry>
A15: <entry id=" | B15: 77095 | C15: " lang="en" sex="m"> | D15: Wild Mage Invoking (Warlock) | E15: </entry> | F15: <entry id="77095" lang="en" sex="m">Wild Mage Invoking (Warlock)</entry>
A16: <entry id=" | B16: 77096 | C16: " lang="en" sex="m"> | D16: Abjurant Champion Invoking (Dragonfire Adept) | E16: </entry> | F16: <entry id="77096" lang="en" sex="m">Abjurant Champion Invoking (Dragonfire Adept)</entry>
A17: <entry id=" | B17: 77097 | C17: " lang="en" sex="m"> | D17: Acolye of the Skin Invoking (Dragonfire Adept) | E17: </entry> | F17: <entry id="77097" lang="en" sex="m">Acolye of the Skin Invoking (Dragonfire Adept)</entry>
A18: <entry id=" | B18: 77098 | C18: " lang="en" sex="m"> | D18: Anima Mage Invoking (Dragonfire Adept) | E18: </entry> | F18: <entry id="77098" lang="en" sex="m">Anima Mage Invoking (Dragonfire Adept)</entry>
A19: <entry id=" | B19: 77099 | C19: " lang="en" sex="m"> | D19: Arcane Trickster Invoking (Dragonfire Adept) | E19: </entry> | F19: =CONCATENATE(A19,B19,C19,D19,E19) -> <entry id="77099" lang="en" sex="m">Arcane Trickster Invoking (Dragonfire Adept)</entry>
A20: <entry id=" | B20: 77100 | C20: " lang="en" sex="m"> | D20: Blood Magus Invoking (Dragonfire Adept) | E20: </entry> | F20: <entry id="77100" lang="en" sex="m">Blood Magus Invoking (Dragonfire Adept)</entry>
A21: <entry id=" | B21: 77101 | C21: " lang="en" sex="m"> | D21: Disciple of Asmodeus Invoking (Dragonfire Adept) | E21: </entry> | F21: <entry id="77101" lang="en" sex="m">Disciple of Asmodeus Invoking (Dragonfire Adept)</entry>
A22: <entry id=" | B22: 77102 | C22: " lang="en" sex="m"> | D22: Enlighted Fist Invoking (Dragonfire Adept) | E22: </entry> | F22: <entry id="77102" lang="en" sex="m">Enlighted Fist Invoking (Dragonfire Adept)</entry>
A23: <entry id=" | B23: 77103 | C23: " lang="en" sex="m"> | D23: Maester Invoking (Dragonfire Adept) | E23: </entry> | F23: <entry id="77103" lang="en" sex="m">Maester Invoking (Dragonfire Adept)</entry>
A24: <entry id=" | B24: 77104 | C24: " lang="en" sex="m"> | D24: Talon of Tiamat Invoking (Dragonfire Adept) | E24: </entry> | F24: <entry id="77104" lang="en" sex="m">Talon of Tiamat Invoking (Dragonfire Adept)</entry>
A25: <entry id=" | B25: 77105 | C25: " lang="en" sex="m"> | D25: Unseen Seer Invoking (Dragonfire Adept) | E25: </entry> | F25: <entry id="77105" lang="en" sex="m">Unseen Seer Invoking (Dragonfire Adept)</entry>
A26: <entry id=" | B26: 77106 | C26: " lang="en" sex="m"> | D26: Virtuoso Invoking (Dragonfire Adept) | E26: </entry> | F26: <entry id="77106" lang="en" sex="m">Virtuoso Invoking (Dragonfire Adept)</entry>
A27: <entry id=" | B27: 77107 | C27: " lang="en" sex="m"> | D27: Wild Mage Invoking (Dragonfire Adept) | E27: </entry> | F27: <entry id="77107" lang="en" sex="m">Wild Mage Invoking (Dragonfire Adept)</entry>
A28: <entry id=" | B28: 77108 | C28: " lang="en" sex="m"> | D28: Abjurant Champion Invoking (Dragon Shaman) | E28: </entry> | F28: <entry id="77108" lang="en" sex="m">Abjurant Champion Invoking (Dragon Shaman)</entry>
A29: <entry id=" | B29: 77109 | C29: " lang="en" sex="m"> | D29: Disciple of Asmodeus Invoking (Dragon Shaman) | E29: </entry> | F29: =CONCATENATE(A29,B29,C29,D29,E29) -> <entry id="77109" lang="en" sex="m">Disciple of Asmodeus Invoking (Dragon Shaman)</entry>
A30: <entry id=" | B30: 77110 | C30: " lang="en" sex="m"> | D30: Enlighted Fist Invoking (Dragon Shaman) | E30: </entry> | F30: <entry id="77110" lang="en" sex="m">Enlighted Fist Invoking (Dragon Shaman)</entry>
A31: <entry id=" | B31: 77111 | C31: " lang="en" sex="m"> | D31: Talon of Tiamat Invoking (Dragon Shaman) | E31: </entry> | F31: <entry id="77111" lang="en" sex="m">Talon of Tiamat Invoking (Dragon Shaman)</entry>
A32: <entry id=" | B32: 77112 | C32: " lang="en" sex="m"> | D32: Unseen Seer Invoking (Dragon Shaman) | E32: </entry> | F32: <entry id="77112" lang="en" sex="m">Unseen Seer Invoking (Dragon Shaman)</entry>
A33: <entry id=" | B33: 77113 | C33: " lang="en" sex="m"> | D33: Virtuoso Invoking (Dragon Shaman) | E33: </entry> | F33: <entry id="77113" lang="en" sex="m">Virtuoso Invoking (Dragon Shaman)</entry>
A34: <entry id=" | B34: 77114 | C34: " lang="en" sex="m"> | D34: Wild Mage Invoking (Dragon Shaman) | E34: </entry> | F34: <entry id="77114" lang="en" sex="m">Wild Mage Invoking (Dragon Shaman)</entry>

Sheet Invoker Marker Descriptions
A1: Name | B1: TLK Description | C1: 2DA Description
A2: FEAT_ABCHAMP_SPELLCASTING | B2: 76937 | C2: 16854153 | E2: 16854153
A3: FEAT_ACOLYTE_SPELLCASTING | B3: 76938 | C3: 16854154 | E3: 16854160
A4: FEAT_ANIMA_SPELLCASTING | B4: 76941 | C4: 16854157 | E4: 16854177
A5: FEAT_ARCTRICK_SPELLCASTING | B5: 76943 | C5: 16854159 | E5: 16854222
A6: FEAT_BLDMAGUS_SPELLCASTING | B6: 76946 | C6: 16854162 | E6: 16854225
A7: FEAT_ASMODEUS_SPELLCASTING | B7: 76944 | C7: 16854160 | E7: 16854226
A8: FEAT_ELDISCIPLE_SPELLCASTING | B8: 76958 | C8: 16854174 | E8: 16854229
A9: FEAT_ELDTHEURGE_SPELLCASTING | B9: 76959 | C9: 16854175
A10: FEAT_ENLIGHTENEDFIST_SPELLCASTING | B10: 76961 | C10: 16854177
A11: FEAT_MAESTER_SPELLCASTING | B11: 76977 | C11: 16854193
A12: FEAT_TIAMAT_SPELLCASTING | B12: 77006 | C12: 16854222
A13: FEAT_UNSEEN_SPELLCASTING | B13: 77009 | C13: 16854225
A14: FEAT_VIRTUOSO_SPELLCASTING | B14: 77010 | C14: 16854226
A15: FEAT_WILDMAGE_SPELLCASTING | B15: 77013 | C15: 16854229
A16: FEAT_HELLFIRE_INVOKING | B16: 77115 | C16: =SUM(B16+16777216) -> 16854331

Sheet Shadowcast Marker Constants
B1: //:: Shadowcaster marker feats | H1: =CONCATENATE(B1, C1, D1, F1, G1) -> //:: Shadowcaster marker feats
A2: const int | B2: FEAT_AOTS_MYSTERY_SHADOWCASTER | D2: = | F2: 26731 | G2: ; | H2: =CONCATENATE(A2,B2, C2, D2, E2, F2, G2) -> const int FEAT_AOTS_MYSTERY_SHADOWCASTER = 26731;
A3: const int | B3: FEAT_ALIEN_MYSTERY_SHADOWCASTER | D3: = | F3: 26732 | G3: ; | H3: =CONCATENATE(A3,B3, C3, D3, E3, F3, G3) -> const int FEAT_ALIEN_MYSTERY_SHADOWCASTER = 26732;
A4: const int | B4: FEAT_CHILDNIGHT_MYSTERY_SHADOWCASTER | D4: = | F4: 26733 | G4: ; | H4: const int FEAT_CHILDNIGHT_MYSTERY_SHADOWCASTER = 26733;
A5: const int | B5: FEAT_ASMODEUS_MYSTERY_SHADOWCASTER | D5: = | F5: 26734 | G5: ; | H5: const int FEAT_ASMODEUS_MYSTERY_SHADOWCASTER = 26734;
A6: const int | B6: FEAT_DRAGONSONG_MYSTERY_SHADOWCASTER | D6: = | F6: 26735 | G6: ; | H6: const int FEAT_DRAGONSONG_MYSTERY_SHADOWCASTER = 26735;
A7: const int | B7: FEAT_ESAVANT_MYSTERY_SHADOWCASTER | D7: = | F7: 26736 | G7: ; | H7: const int FEAT_ESAVANT_MYSTERY_SHADOWCASTER = 26736;
A8: const int | B8: FEAT_MASTERSHADOW_MYSTERY_SHADOWCASTER | D8: = | F8: 26737 | G8: ; | H8: const int FEAT_MASTERSHADOW_MYSTERY_SHADOWCASTER = 26737;
A9: const int | B9: FEAT_MYSTICTHEURGE_MYSTERY_SHADOWCASTER | D9: = | F9: 26738 | G9: ; | H9: const int FEAT_MYSTICTHEURGE_MYSTERY_SHADOWCASTER = 26738;
A10: const int | B10: FEAT_NOCTUMANCER_MYSTERY_SHADOWCASTER | D10: = | F10: 26739 | G10: ; | H10: const int FEAT_NOCTUMANCER_MYSTERY_SHADOWCASTER = 26739;
A11: const int | B11: FEAT_OLLAM_MYSTERY_SHADOWCASTER | D11: = | F11: 26740 | G11: ; | H11: const int FEAT_OLLAM_MYSTERY_SHADOWCASTER = 26740;
A12: const int | B12: FEAT_TIAMAT_MYSTERY_SHADOWCASTER | D12: = | F12: 26741 | G12: ; | H12: const int FEAT_TIAMAT_MYSTERY_SHADOWCASTER = 26741;
A13: const int | B13: FEAT_ORCUS_MYSTERY_SHADOWCASTER | D13: = | F13: 26742 | G13: ; | H13: const int FEAT_ORCUS_MYSTERY_SHADOWCASTER = 26742;
B15: //:: Shadowsmith marker feats | H15: =CONCATENATE(A15,B15, C15, D15, E15, F15, G15) -> //:: Shadowsmith marker feats
A16: const int | B16: FEAT_AOTS_MYSTERY_SHADOWSMITH | D16: = | F16: 26743 | G16: ; | H16: const int FEAT_AOTS_MYSTERY_SHADOWSMITH = 26743;
A17: const int | B17: FEAT_ALIEN_MYSTERY_SHADOWSMITH | D17: = | F17: 26744 | G17: ; | H17: const int FEAT_ALIEN_MYSTERY_SHADOWSMITH = 26744;
A18: const int | B18: FEAT_CHILDNIGHT_MYSTERY_SHADOWSMITH | D18: = | F18: 26745 | G18: ; | H18: const int FEAT_CHILDNIGHT_MYSTERY_SHADOWSMITH = 26745;
A19: const int | B19: FEAT_ASMODEUS_MYSTERY_SHADOWSMITH | D19: = | F19: 26746 | G19: ; | H19: const int FEAT_ASMODEUS_MYSTERY_SHADOWSMITH = 26746;
A20: const int | B20: FEAT_DRAGONSONG_MYSTERY_SHADOWSMITH | D20: = | F20: 26747 | G20: ; | H20: const int FEAT_DRAGONSONG_MYSTERY_SHADOWSMITH = 26747;
A21: const int | B21: FEAT_ESAVANT_MYSTERY_SHADOWSMITH | D21: = | F21: 26748 | G21: ; | H21: const int FEAT_ESAVANT_MYSTERY_SHADOWSMITH = 26748;
A22: const int | B22: FEAT_MASTERSHADOW_MYSTERY_SHADOWSMITH | D22: = | F22: 26749 | G22: ; | H22: const int FEAT_MASTERSHADOW_MYSTERY_SHADOWSMITH = 26749;
A23: const int | B23: FEAT_MYSTICTHEURGE_MYSTERY_SHADOWSMITH | D23: = | F23: 26750 | G23: ; | H23: const int FEAT_MYSTICTHEURGE_MYSTERY_SHADOWSMITH = 26750;
A24: const int | B24: FEAT_NOCTUMANCER_MYSTERY_SHADOWSMITH | D24: = | F24: 26751 | G24: ; | H24: const int FEAT_NOCTUMANCER_MYSTERY_SHADOWSMITH = 26751;
A25: const int | B25: FEAT_OLLAM_MYSTERY_SHADOWSMITH | D25: = | F25: 26752 | G25: ; | H25: const int FEAT_OLLAM_MYSTERY_SHADOWSMITH = 26752;
A26: const int | B26: FEAT_TIAMAT_MYSTERY_SHADOWSMITH | D26: = | F26: 26753 | G26: ; | H26: const int FEAT_TIAMAT_MYSTERY_SHADOWSMITH = 26753;
A27: const int | B27: FEAT_ORCUS_MYSTERY_SHADOWSMITH | D27: = | F27: 26754 | G27: ; | H27: const int FEAT_ORCUS_MYSTERY_SHADOWSMITH = 26754;

Sheet Shadowcast Marker TLK Work
A1: <entry id=" | B1: 77116 | C1: " lang="en" sex="m"> | D1: Acolyte of the Skin Shadowcasting (Shadowcaster) | E1: </entry> | F1: =CONCATENATE(A1,B1,C1,D1,E1) -> <entry id="77116" lang="en" sex="m">Acolyte of the Skin Shadowcasting (Shadowcaster)</entry>
A2: <entry id=" | B2: =SUM(B1+1) -> 77117 | C2: " lang="en" sex="m"> | D2: Alienist Shadowcasting (Shadowcaster) | E2: </entry> | F2: =CONCATENATE(A2,B2,C2,D2,E2) -> <entry id="77117" lang="en" sex="m">Alienist Shadowcasting (Shadowcaster)</entry>
A3: <entry id=" | B3: =SUM(B2+1) -> 77118 | C3: " lang="en" sex="m"> | D3: Child of Night Shadowcasting (Shadowcaster) | E3: </entry> | F3: <entry id="77118" lang="en" sex="m">Child of Night Shadowcasting (Shadowcaster)</entry>
A4: <entry id=" | B4: 77119 | C4: " lang="en" sex="m"> | D4: Disciple of Asmodeus Shadowcasting (Shadowcaster) | E4: </entry> | F4: <entry id="77119" lang="en" sex="m">Disciple of Asmodeus Shadowcasting (Shadowcaster)</entry>
A5: <entry id=" | B5: 77120 | C5: " lang="en" sex="m"> | D5: Dragonsong Lyrist Shadowcasting (Shadowcaster) | E5: </entry> | F5: <entry id="77120" lang="en" sex="m">Dragonsong Lyrist Shadowcasting (Shadowcaster)</entry>
A6: <entry id=" | B6: 77121 | C6: " lang="en" sex="m"> | D6: Elemental Savant Shadowcasting (Shadowcaster) | E6: </entry> | F6: <entry id="77121" lang="en" sex="m">Elemental Savant Shadowcasting (Shadowcaster)</entry>
A7: <entry id=" | B7: 77122 | C7: " lang="en" sex="m"> | D7: Master of Shadow Shadowcasting (Shadowcaster) | E7: </entry> | F7: <entry id="77122" lang="en" sex="m">Master of Shadow Shadowcasting (Shadowcaster)</entry>
A8: <entry id=" | B8: 77123 | C8: " lang="en" sex="m"> | D8: Mystic Theurge Shadowcasting (Shadowcaster) | E8: </entry> | F8: <entry id="77123" lang="en" sex="m">Mystic Theurge Shadowcasting (Shadowcaster)</entry>
A9: <entry id=" | B9: 77124 | C9: " lang="en" sex="m"> | D9: Noctumancer Shadowcasting (Shadowcaster) | E9: </entry> | F9: <entry id="77124" lang="en" sex="m">Noctumancer Shadowcasting (Shadowcaster)</entry>
A10: <entry id=" | B10: 77125 | C10: " lang="en" sex="m"> | D10: Ollam Shadowcasting (Shadowcaster) | E10: </entry> | F10: <entry id="77125" lang="en" sex="m">Ollam Shadowcasting (Shadowcaster)</entry>
A11: <entry id=" | B11: 77126 | C11: " lang="en" sex="m"> | D11: Talon of Tiamat Shadowcasting (Shadowcaster) | E11: </entry> | F11: <entry id="77126" lang="en" sex="m">Talon of Tiamat Shadowcasting (Shadowcaster)</entry>
A12: <entry id=" | B12: 77127 | C12: " lang="en" sex="m"> | D12: Thrall of Orcus Shadowcasting (Shadowcaster) | E12: </entry> | F12: <entry id="77127" lang="en" sex="m">Thrall of Orcus Shadowcasting (Shadowcaster)</entry>
A13: <entry id=" | B13: 77128 | C13: " lang="en" sex="m"> | D13: Acolyte of the Skin Shadowcasting (Shadowsmith) | E13: </entry> | F13: <entry id="77128" lang="en" sex="m">Acolyte of the Skin Shadowcasting (Shadowsmith)</entry>
A14: <entry id=" | B14: 77129 | C14: " lang="en" sex="m"> | D14: Alienist Shadowcasting (Shadowsmith) | E14: </entry> | F14: <entry id="77129" lang="en" sex="m">Alienist Shadowcasting (Shadowsmith)</entry>
A15: <entry id=" | B15: 77130 | C15: " lang="en" sex="m"> | D15: Child of Night Shadowcasting (Shadowsmith) | E15: </entry> | F15: <entry id="77130" lang="en" sex="m">Child of Night Shadowcasting (Shadowsmith)</entry>
A16: <entry id=" | B16: 77131 | C16: " lang="en" sex="m"> | D16: Disciple of Asmodeus Shadowcasting (Shadowsmith) | E16: </entry> | F16: <entry id="77131" lang="en" sex="m">Disciple of Asmodeus Shadowcasting (Shadowsmith)</entry>
A17: <entry id=" | B17: 77132 | C17: " lang="en" sex="m"> | D17: Dragonsong Lyrist Shadowcasting (Shadowsmith) | E17: </entry> | F17: <entry id="77132" lang="en" sex="m">Dragonsong Lyrist Shadowcasting (Shadowsmith)</entry>
A18: <entry id=" | B18: 77133 | C18: " lang="en" sex="m"> | D18: Elemental Savant Shadowcasting (Shadowsmith) | E18: </entry> | F18: <entry id="77133" lang="en" sex="m">Elemental Savant Shadowcasting (Shadowsmith)</entry>
A19: <entry id=" | B19: 77134 | C19: " lang="en" sex="m"> | D19: Master of Shadow Shadowcasting (Shadowsmith) | E19: </entry> | F19: <entry id="77134" lang="en" sex="m">Master of Shadow Shadowcasting (Shadowsmith)</entry>
A20: <entry id=" | B20: 77135 | C20: " lang="en" sex="m"> | D20: Mystic Theurge Shadowcasting (Shadowsmith) | E20: </entry> | F20: <entry id="77135" lang="en" sex="m">Mystic Theurge Shadowcasting (Shadowsmith)</entry>
A21: <entry id=" | B21: 77136 | C21: " lang="en" sex="m"> | D21: Noctumancer Shadowcasting (Shadowsmith) | E21: </entry> | F21: <entry id="77136" lang="en" sex="m">Noctumancer Shadowcasting (Shadowsmith)</entry>
A22: <entry id=" | B22: 77137 | C22: " lang="en" sex="m"> | D22: Ollam Shadowcasting (Shadowsmith) | E22: </entry> | F22: <entry id="77137" lang="en" sex="m">Ollam Shadowcasting (Shadowsmith)</entry>
A23: <entry id=" | B23: 77138 | C23: " lang="en" sex="m"> | D23: Talon of Tiamat Shadowcasting (Shadowsmith) | E23: </entry> | F23: <entry id="77138" lang="en" sex="m">Talon of Tiamat Shadowcasting (Shadowsmith)</entry>
A24: <entry id=" | B24: 77139 | C24: " lang="en" sex="m"> | D24: Thrall of Orcus Shadowcasting (Shadowsmith) | E24: </entry> | F24: <entry id="77139" lang="en" sex="m">Thrall of Orcus Shadowcasting (Shadowsmith)</entry>

Sheet Shadowcast Feat Descriptions
A1: Name | B1: TLK Description | C1: 2DA Description
A2: FEAT_AOTS_MYSTERY_SHADOWCASTER | B2: 77140 | C2: 16854356
A3: FEAT_ALIEN_MYSTERY_SHADOWCASTER | B3: 77141 | C3: 16854357
A4: FEAT_CHILDNIGHT_MYSTERY_SHADOWCASTER | B4: 77142 | C4: 16854358
A5: FEAT_ASMODEUS_MYSTERY_SHADOWCASTER | B5: 77143 | C5: 16854359
A6: FEAT_DRAGONSONG_MYSTERY_SHADOWCASTER | B6: 77144 | C6: 16854360
A7: FEAT_ESAVANT_MYSTERY_SHADOWCASTER | B7: 77145 | C7: 16854361
A8: FEAT_MASTERSHADOW_MYSTERY_SHADOWCASTER | B8: 77146 | C8: 16854362
A9: FEAT_MYSTICTHEURGE_MYSTERY_SHADOWCASTER | B9: 77147 | C9: 16854363
A10: FEAT_NOCTUMANCER_MYSTERY_SHADOWCASTER | B10: 77148 | C10: 16854364
A11: FEAT_OLLAM_MYSTERY_SHADOWCASTER | B11: 77149 | C11: 16854365
A12: FEAT_TIAMAT_MYSTERY_SHADOWCASTER | B12: 77150 | C12: 16854366
A13: FEAT_ORCUS_MYSTERY_SHADOWCASTER | B13: 77151 | C13: 16854367
A14: FEAT_AOTS_MYSTERY_SHADOWSMITH | B14: 77140 | C14: 16854356
A15: FEAT_ALIEN_MYSTERY_SHADOWSMITH | B15: 77141 | C15: 16854357
A16: FEAT_CHILDNIGHT_MYSTERY_SHADOWSMITH | B16: 77142 | C16: 16854358
A17: FEAT_ASMODEUS_MYSTERY_SHADOWSMITH | B17: 77143 | C17: 16854359
A18: FEAT_DRAGONSONG_MYSTERY_SHADOWSMITH | B18: 77144 | C18: 16854360
A19: FEAT_ESAVANT_MYSTERY_SHADOWSMITH | B19: 77145 | C19: 16854361
A20: FEAT_MASTERSHADOW_MYSTERY_SHADOWSMITH | B20: 77146 | C20: 16854362
A21: FEAT_MYSTICTHEURGE_MYSTERY_SHADOWSMITH | B21: 77147 | C21: 16854363
A22: FEAT_NOCTUMANCER_MYSTERY_SHADOWSMITH | B22: 77148 | C22: 16854364
A23: FEAT_OLLAM_MYSTERY_SHADOWSMITH | B23: 77149 | C23: 16854365
A24: FEAT_TIAMAT_MYSTERY_SHADOWSMITH | B24: 77150 | C24: 16854366
A25: FEAT_ORCUS_MYSTERY_SHADOWSMITH | B25: 77151 | C25: 16854367

Sheet Sheet1
